Workbook

Sheet Welcome
B1: EPA Cost Savings Calculator for Pollution Prevention Projects
B3: Purpose. The purpose of this Calculator is threefold: (1) to help EPA P2 Program grantees make a calculation of annual net cost savings for an individual P2 action; (2) to provide thorough coverage of categories of P2 actions and their multimedia impacts for cost-saving calculations; and, (3) to track and aggregate entries for reading in the Aggregate Tab. The annual net-cost savings being calculated here are on an implementation-forward basis only and do not consider the cost of implementation. Grantees can, if desired, use this calculator to estimate prospective annual cost savings and, if helpful, cross-check dollar savings entered in grant reporting templates. The scope of data-entry categories is displayed in the colored tabs below. The general public is welcome to use this calculator.
B4: Functionality. The calculator uses available, documented unit costs in its formulas. Documented unit costs at the state or national-average level are used in the formulas for fuel, energy, and water purchases and for the fees associated with wastewater pre-treatment/treatment, hazardous waste shipping/treatment, and permitted air releases. Cost savings appear as a positive dollar value in the "Cost Savings" column. When a substitute costs more than the original, as green electricity typically does, the higher cost appears as a negative dollar value in the "Cost Savings" column. This negative cost savings is an increase in costs. The Conversion Factor and Reference Tabs may be of interest to some users. Basic calculations. For quick cost-saving calculations, a user can select a tab for an action type -- electricity use, fuel use, water use, water pollution, hazardous inputs and wastes, air emissions, or non-hazardous inputs -- and choose an activity metric in a row to see the savings calculated in the Cost Savings column. In most cases, users can enter more up-to-date unit costs in place of the default value. For a recordkeeping approach, a user can start on the Aggregate Tab and replace "Row 1," "Row 2," and so on with short descriptions (such as P2 actions) to populate those row descriptions in the other action tabs.
B5: Aggregation. The Aggregate Tab displays total net cost savings per action-category tab and per row (captioned or not).
B6: Using the Calculator in support of EPA Grant Reporting. Grantees are encouraged to use this Calculator to report P2 implementation cost savings to EPA. This Calculator plays a supportive role for grant reporting. If you are reporting to EPA and using this calculator, you would use a three-step process: (1) enter descriptions of P2 activities implemented in EPA's reporting templates or something equivalent; (2) use this calculator as needed for calculating annual net cost savings per activity implemented; and, (3) record the annual net cost savings in your EPA reporting template or equivalent format.This Calculator does not provide fields for entering the facility data, recommendations, or implemented actions that are required for P2 Program grant reporting. The examples provided on action tabs include a P2 activity description to portray a real scenario, but there is nowhere to enter a P2 activity description in this Calculator.
B9: Throughout this calculator, the following color key is used.
B10: Color Key
B11: Enter value
B12: Use drop-down menu
B13: Do not change - calculation

Sheet Aggregate
B1: Aggregated P2 Cost Savings by Category and Row
B2: This tab acts as a parent tab for this calculator by aggregating the cost savings from each tab, by category and by row.
A4: How to use this tab | B4: Use this tab as a read-only tab for aggregate cost-saving values and as an entry tab for labeling rows. To label a row, enter a caption of your choice in the first column. This step will populate the caption for that row in all action tabs. Continue labeling rows as desired. To get more rows, click the "Click to add row" button here or on any tab and a row will be added to all tabs
B5: Electricity Use | C5: Fuel Use | D5: Water Use | E5: Water Pollution | F5: Hazardous Inputs | G5: Hazardous Waste | H5: Air Emissions | I5: Non-Hazardous Inputs | J5: Total by Row
B6: cost savings ($) | C6: cost savings ($) | D6: cost savings ($) | E6: cost savings ($) | F6: cost savings ($) | G6: cost savings ($) | H6: cost savings ($) | I6: cost savings ($) | J6: cost savings ($)
A7: Aggregate (all rows) | B7: =SUM(B9:B19) -> 0 | C7: =SUM(C9:C19) -> 0 | D7: =SUM(H9:H19) -> 0 | E7: =SUM(D19:D19) -> 0 | F7: =SUM(E19:E19) -> 0 | G7: =SUM(F9:F19) -> 0 | H7: =SUM(G9:G19) -> 0 | I7: =SUM(I19:I19) -> 0 | J7: =SUM(J9:J19) -> 0
A9: Row 1 | B9: =IF(ISERROR('Electricity Use'!E14+'Electricity Use'!H14), 0, 'Electricity Use'!E14+'Electricity Use'!H14) -> 0 | C9: ='Fuel Use'!F14+'Fuel Use'!I14+'Fuel Use'!L14+'Fuel Use'!O14+'Fuel Use'!R14+'Fuel Use'!U14+'Fuel Use'!X14+'Fuel Use'!AA14+'Fuel Use'!AD14 -> 0 | D9: ='Water Use'!D12 -> 0 | E9: =SUM('Water Pollution'!AI12) -> 0 | F9: ='Haz Inputs & Wastes'!E14 -> 0 | G9: ='Haz Inputs & Wastes'!I14+'Haz Inputs & Wastes'!M14+'Haz Inputs & Wastes'!Q14 -> 0 | H9: =SUM('Air Emissions'!F13,'Air Emissions'!D13,'Air Emissions'!G13 ) -> 0 | I9: ='Non-Haz Inputs'!E12 -> 0 | J9: =SUM(B9:I9) -> 0
A10: Row 2 | B10: =IF(ISERROR('Electricity Use'!E15+'Electricity Use'!H15), 0, 'Electricity Use'!E15+'Electricity Use'!H15) -> 0 | C10: ='Fuel Use'!F15+'Fuel Use'!I15+'Fuel Use'!L15+'Fuel Use'!O15+'Fuel Use'!R15+'Fuel Use'!U15+'Fuel Use'!X15+'Fuel Use'!AA15+'Fuel Use'!AD15 -> 0 | D10: ='Water Use'!D13 -> 0 | E10: =SUM('Water Pollution'!AI13) -> 0 | F10: ='Haz Inputs & Wastes'!E15 -> 0 | G10: ='Haz Inputs & Wastes'!I15+'Haz Inputs & Wastes'!M15+'Haz Inputs & Wastes'!Q15 -> 0 | H10: =SUM('Air Emissions'!F14,'Air Emissions'!D14,'Air Emissions'!G14 ) -> 0 | I10: ='Non-Haz Inputs'!E13 -> 0 | J10: 0
A11: Row 3 | B11: =IF(ISERROR('Electricity Use'!E16+'Electricity Use'!H16), 0, 'Electricity Use'!E16+'Electricity Use'!H16) -> 0 | C11: ='Fuel Use'!F16+'Fuel Use'!I16+'Fuel Use'!L16+'Fuel Use'!O16+'Fuel Use'!R16+'Fuel Use'!U16+'Fuel Use'!X16+'Fuel Use'!AA16+'Fuel Use'!AD16 -> 0 | D11: ='Water Use'!D14 -> 0 | E11: =SUM('Water Pollution'!AI14) -> 0 | F11: ='Haz Inputs & Wastes'!E16 -> 0 | G11: ='Haz Inputs & Wastes'!I16+'Haz Inputs & Wastes'!M16+'Haz Inputs & Wastes'!Q16 -> 0 | H11: =SUM('Air Emissions'!F15,'Air Emissions'!D15,'Air Emissions'!G15 ) -> 0 | I11: ='Non-Haz Inputs'!E14 -> 0 | J11: 0
A12: Row 4 | B12: =IF(ISERROR('Electricity Use'!E17+'Electricity Use'!H17), 0, 'Electricity Use'!E17+'Electricity Use'!H17) -> 0 | C12: ='Fuel Use'!F17+'Fuel Use'!I17+'Fuel Use'!L17+'Fuel Use'!O17+'Fuel Use'!R17+'Fuel Use'!U17+'Fuel Use'!X17+'Fuel Use'!AA17+'Fuel Use'!AD17 -> 0 | D12: ='Water Use'!D15 -> 0 | E12: =SUM('Water Pollution'!AI15) -> 0 | F12: ='Haz Inputs & Wastes'!E17 -> 0 | G12: ='Haz Inputs & Wastes'!I17+'Haz Inputs & Wastes'!M17+'Haz Inputs & Wastes'!Q17 -> 0 | H12: =SUM('Air Emissions'!F16,'Air Emissions'!D16,'Air Emissions'!G16 ) -> 0 | I12: ='Non-Haz Inputs'!E15 -> 0 | J12: 0
A13: Row 5 | B13: =IF(ISERROR('Electricity Use'!E18+'Electricity Use'!H18), 0, 'Electricity Use'!E18+'Electricity Use'!H18) -> 0 | C13: ='Fuel Use'!F18+'Fuel Use'!I18+'Fuel Use'!L18+'Fuel Use'!O18+'Fuel Use'!R18+'Fuel Use'!U18+'Fuel Use'!X18+'Fuel Use'!AA18+'Fuel Use'!AD18 -> 0 | D13: ='Water Use'!D16 -> 0 | E13: =SUM('Water Pollution'!AI16) -> 0 | F13: ='Haz Inputs & Wastes'!E18 -> 0 | G13: ='Haz Inputs & Wastes'!I18+'Haz Inputs & Wastes'!M18+'Haz Inputs & Wastes'!Q18 -> 0 | H13: =SUM('Air Emissions'!F17,'Air Emissions'!D17,'Air Emissions'!G17 ) -> 0 | I13: ='Non-Haz Inputs'!E16 -> 0 | J13: 0
A14: Row 6 | B14: =IF(ISERROR('Electricity Use'!E19+'Electricity Use'!H19), 0, 'Electricity Use'!E19+'Electricity Use'!H19) -> 0 | C14: ='Fuel Use'!F19+'Fuel Use'!I19+'Fuel Use'!L19+'Fuel Use'!O19+'Fuel Use'!R19+'Fuel Use'!U19+'Fuel Use'!X19+'Fuel Use'!AA19+'Fuel Use'!AD19 -> 0 | D14: ='Water Use'!D17 -> 0 | E14: =SUM('Water Pollution'!AI17) -> 0 | F14: ='Haz Inputs & Wastes'!E19 -> 0 | G14: ='Haz Inputs & Wastes'!I19+'Haz Inputs & Wastes'!M19+'Haz Inputs & Wastes'!Q19 -> 0 | H14: =SUM('Air Emissions'!F18,'Air Emissions'!D18,'Air Emissions'!G18 ) -> 0 | I14: ='Non-Haz Inputs'!E17 -> 0 | J14: 0
A15: Row 7 | B15: =IF(ISERROR('Electricity Use'!E20+'Electricity Use'!H20), 0, 'Electricity Use'!E20+'Electricity Use'!H20) -> 0 | C15: ='Fuel Use'!F20+'Fuel Use'!I20+'Fuel Use'!L20+'Fuel Use'!O20+'Fuel Use'!R20+'Fuel Use'!U20+'Fuel Use'!X20+'Fuel Use'!AA20+'Fuel Use'!AD20 -> 0 | D15: ='Water Use'!D18 -> 0 | E15: =SUM('Water Pollution'!AI18) -> 0 | F15: ='Haz Inputs & Wastes'!E20 -> 0 | G15: ='Haz Inputs & Wastes'!I20+'Haz Inputs & Wastes'!M20+'Haz Inputs & Wastes'!Q20 -> 0 | H15: =SUM('Air Emissions'!F19,'Air Emissions'!D19,'Air Emissions'!G19 ) -> 0 | I15: ='Non-Haz Inputs'!E18 -> 0 | J15: 0
A16: Row 8 | B16: =IF(ISERROR('Electricity Use'!E21+'Electricity Use'!H21), 0, 'Electricity Use'!E21+'Electricity Use'!H21) -> 0 | C16: ='Fuel Use'!F21+'Fuel Use'!I21+'Fuel Use'!L21+'Fuel Use'!O21+'Fuel Use'!R21+'Fuel Use'!U21+'Fuel Use'!X21+'Fuel Use'!AA21+'Fuel Use'!AD21 -> 0 | D16: ='Water Use'!D19 -> 0 | E16: =SUM('Water Pollution'!AI19) -> 0 | F16: ='Haz Inputs & Wastes'!E21 -> 0 | G16: ='Haz Inputs & Wastes'!I21+'Haz Inputs & Wastes'!M21+'Haz Inputs & Wastes'!Q21 -> 0 | H16: =SUM('Air Emissions'!F20,'Air Emissions'!D20,'Air Emissions'!G20 ) -> 0 | I16: ='Non-Haz Inputs'!E19 -> 0 | J16: 0
A17: Row 9 | B17: =IF(ISERROR('Electricity Use'!E22+'Electricity Use'!H22), 0, 'Electricity Use'!E22+'Electricity Use'!H22) -> 0 | C17: ='Fuel Use'!F22+'Fuel Use'!I22+'Fuel Use'!L22+'Fuel Use'!O22+'Fuel Use'!R22+'Fuel Use'!U22+'Fuel Use'!X22+'Fuel Use'!AA22+'Fuel Use'!AD22 -> 0 | D17: ='Water Use'!D20 -> 0 | E17: =SUM('Water Pollution'!AI20) -> 0 | F17: ='Haz Inputs & Wastes'!E22 -> 0 | G17: ='Haz Inputs & Wastes'!I22+'Haz Inputs & Wastes'!M22+'Haz Inputs & Wastes'!Q22 -> 0 | H17: =SUM('Air Emissions'!F21,'Air Emissions'!D21,'Air Emissions'!G21 ) -> 0 | I17: ='Non-Haz Inputs'!E20 -> 0 | J17: 0
A18: Row 10 | B18: =IF(ISERROR('Electricity Use'!E23+'Electricity Use'!H23), 0, 'Electricity Use'!E23+'Electricity Use'!H23) -> 0 | C18: ='Fuel Use'!F23+'Fuel Use'!I23+'Fuel Use'!L23+'Fuel Use'!O23+'Fuel Use'!R23+'Fuel Use'!U23+'Fuel Use'!X23+'Fuel Use'!AA23+'Fuel Use'!AD23 -> 0 | D18: ='Water Use'!D21 -> 0 | E18: =SUM('Water Pollution'!AI21) -> 0 | F18: ='Haz Inputs & Wastes'!E23 -> 0 | G18: ='Haz Inputs & Wastes'!I23+'Haz Inputs & Wastes'!M23+'Haz Inputs & Wastes'!Q23 -> 0 | H18: =SUM('Air Emissions'!F22,'Air Emissions'!D22,'Air Emissions'!G22 ) -> 0 | I18: ='Non-Haz Inputs'!E21 -> 0 | J18: 0
A19: Row 11 | B19: =IF(ISERROR('Electricity Use'!E24+'Electricity Use'!H24), 0, 'Electricity Use'!E24+'Electricity Use'!H24) -> 0 | C19: ='Fuel Use'!F24+'Fuel Use'!I24+'Fuel Use'!L24+'Fuel Use'!O24+'Fuel Use'!R24+'Fuel Use'!U24+'Fuel Use'!X24+'Fuel Use'!AA24+'Fuel Use'!AD24 -> 0 | D19: ='Water Use'!D22 -> 0 | E19: =SUM('Water Pollution'!AI22) -> 0 | F19: ='Haz Inputs & Wastes'!E24 -> 0 | G19: ='Haz Inputs & Wastes'!I24+'Haz Inputs & Wastes'!M24+'Haz Inputs & Wastes'!Q24 -> 0 | H19: =SUM('Air Emissions'!F23,'Air Emissions'!D23,'Air Emissions'!G23 ) -> 0 | I19: ='Non-Haz Inputs'!E22 -> 0 | J19: 0

Sheet Electricity Use
B1: Electricity Use
B2: This tab computes the cost savings from conserving conventional electricity. It also computes the net dollars spent buying green electricity, which are shown as negative cost savings. Thus, ($100) is an extra $100 spent to switch from conventional to green electricity. The Aggregate tab will show the net cost savings (positive or negative) calculated on this tab.
A4: Type of Activity | C4: Conserving Conventional Electricity | F4: Purchasing Green Electricity
A5: How to use this tab | C5: Enter the kWh of electricity conserved. Enter the unit cost or leave blank and select your state or "U.S. National" to use an average default value. | F5: This computes the cost trade-offs between green electricity and conventional electricity. Enter the kWh of green electricity purchased. For unit cost, enter the unit cost difference between the default unit cost offered by your utility (or your previous electricity unit cost) and the unit cost of your green electricity. Note, if the unit cost of green electricity is higher than the default unit cost, then the difference will be a negative value. If your green electricity was supplied by unbundled renewable energy certificates (RECs), then the negative value of the unit cost ($/kWh) you paid should be entered as the unit cost difference. If you don't know the unit cost difference, leave the "Unit Cost Difference" field blank and a default value will be used.
A6: Calculation Description | C6: Quantity of electricity reduced (kWh) * unit cost (user-specified or default) = Dollar savings. | F6: Quantity of electricity purchased (kWh) * unit cost differential (user-specified or default) = Dollars savings.
A7: Default Unit Cost | C7: 0.1017 | F7: -0.0186
B9: State or U.S. (select) | C9: Electricity Conserved Quantity (kWh) | D9: Unit Cost ($/kWh) | E9: Dollar Savings | F9: Green Electricity Quantity (kWh) | G9: Unit Cost Difference ($/kWh) | H9: Dollar Savings
A10: Example | C10: Installed energy-efficient lighting and reduced lighting and air conditioning usage at two commercial buildings. | F10: A facility switched their electricity supply from their utility's default product to a green power product sourced from 100% wind. Their electricity rate increased by $0.0186 per kWh. They use approximately 500,000 kWh of electricity per year.
B11: NC | C11: 200000 | E11: =IFERROR(IF(C11="","-",IF(D11="",C11*VLOOKUP(B11,'State Elec. Prices & Premiums'!$B$4:$D$55,3,FALSE),C11*D11)),"-") -> 17380 | F11: 500000 | G11: -0.0186 | H11: =IF(F11="","-",IF(G11="",F11*-0.0186,F11*G11)) -> -9300
A12: Totals - All Rows | E12: =SUM(E14:E24) -> 0 | H12: =SUM(H14:H24) -> 0
A14: =Aggregate!A9 -> Row 1 | B14: (select) | E14: =IFERROR(IF(C14="",0,IF(D14="",C14*VLOOKUP(B14,'State Elec. Prices & Premiums'!$B$4:$D$55,3,FALSE),C14*D14)),0) -> 0 | H14: =IF(F14="","-",IF(G14="",F14*-0.0186,F14*G14)) -> -
A15: =Aggregate!A10 -> Row 2 | B15: (select) | E15: =IFERROR(IF(C15="",0,IF(D15="",C15*VLOOKUP(B15,'State Elec. Prices & Premiums'!$B$4:$D$55,3,FALSE),C15*D15)),0) -> 0 | H15: =IF(F15="","-",IF(G15="",F15*-0.0186,F15*G15)) -> -
A16: =Aggregate!A11 -> Row 3 | B16: (select) | E16: =IFERROR(IF(C16="",0,IF(D16="",C16*VLOOKUP(B16,'State Elec. Prices & Premiums'!$B$4:$D$55,3,FALSE),C16*D16)),0) -> 0 | H16: -
A17: =Aggregate!A12 -> Row 4 | B17: (select) | E17: =IFERROR(IF(C17="",0,IF(D17="",C17*VLOOKUP(B17,'State Elec. Prices & Premiums'!$B$4:$D$55,3,FALSE),C17*D17)),0) -> 0 | H17: -
A18: =Aggregate!A13 -> Row 5 | B18: (select) | E18: =IFERROR(IF(C18="",0,IF(D18="",C18*VLOOKUP(B18,'State Elec. Prices & Premiums'!$B$4:$D$55,3,FALSE),C18*D18)),0) -> 0 | H18: -
A19: =Aggregate!A14 -> Row 6 | B19: (select) | E19: =IFERROR(IF(C19="",0,IF(D19="",C19*VLOOKUP(B19,'State Elec. Prices & Premiums'!$B$4:$D$55,3,FALSE),C19*D19)),0) -> 0 | H19: -
A20: =Aggregate!A15 -> Row 7 | B20: (select) | E20: =IFERROR(IF(C20="",0,IF(D20="",C20*VLOOKUP(B20,'State Elec. Prices & Premiums'!$B$4:$D$55,3,FALSE),C20*D20)),0) -> 0 | H20: -
A21: =Aggregate!A16 -> Row 8 | B21: (select) | E21: =IFERROR(IF(C21="",0,IF(D21="",C21*VLOOKUP(B21,'State Elec. Prices & Premiums'!$B$4:$D$55,3,FALSE),C21*D21)),0) -> 0 | H21: -
A22: =Aggregate!A17 -> Row 9 | B22: (select) | E22: =IFERROR(IF(C22="",0,IF(D22="",C22*VLOOKUP(B22,'State Elec. Prices & Premiums'!$B$4:$D$55,3,FALSE),C22*D22)),0) -> 0 | H22: -
A23: =Aggregate!A18 -> Row 10 | B23: (select) | E23: =IFERROR(IF(C23="",0,IF(D23="",C23*VLOOKUP(B23,'State Elec. Prices & Premiums'!$B$4:$D$55,3,FALSE),C23*D23)),0) -> 0 | H23: -
A24: =Aggregate!A19 -> Row 11 | B24: (select) | E24: =IFERROR(IF(C24="",0,IF(D24="",C24*VLOOKUP(B24,'State Elec. Prices & Premiums'!$B$4:$D$55,3,FALSE),C24*D24)),0) -> 0 | H24: -
A26: Color Key
A27: Enter value
A28: Use drop-down menu
A29: Do not change - calculation
A31: Sources
A32: ELECTRICITY CONSERVATION | B32: Energy Information Administration (EIA), 2020
A33: PURCHASED GREEN ELECTRICITY | B33: National Renewable Energy Laboratory (NREL), 2020. https://www.nrel.gov/analysis/assets/docs/utility-green-pricing-program-list.xlsx . Using NREL's data, the average utility price of a green power product is $0.0186/kWh.
A34: Additional Information
A35: EPA's Green Power Pricing | B35: https://www.epa.gov/greenpower/green-power-pricing
A36: EPA's Supply Options | B36: https://www.epa.gov/greenpower/green-power-supply-options
A37: EPA's Locate Green Power Suppliers | B37: https://www.epa.gov/greenpower/locate-green-power-suppliers
A38: EPA's Supply Options Screen Tool | B38: https://www.epa.gov/greenpower/procurement-tools-resources

Sheet Fuel Use
B1: Fuel Use
B2: This tab computes cost savings from buying less fossil fuel and using less for travel. For a travel activity, please use whichever is easier for you -- vehicles miles or motor gasoline reduced (just not both).
A4: PLACE CURSOR OVER CELL FOR MORE INFORMATION → | B4: Natural Gas | G4: Vehicle Miles Reduced | J4: Motor Gasoline | M4: Diesel | P4: Biodiesel | S4: Heating Oil | V4: Jet Fuel | Y4: Air Travel | AB4: Coal
A5: How to use this tab | B5: Enter the quantity and unit of natural gas reduced. Enter the unit cost or leave blank to use a default value. Savings are on the right. | G5: Enter the number of vehicle miles reduced. Enter the unit cost or leave blank to use a default value. Savings are on the right. Only add values here if not adding them in the Motor Gasoline column. | J5: Enter the gallons of motor gasoline reduced. Enter the unit cost or leave blank to use a default value. Savings are on the right. Only add values here if not adding them in the Vehicle Miles Reduced column. | M5: Enter the gallons of diesel reduced. Enter the unit cost or leave blank to use a default value. Savings are on the right. | P5: Enter the gallons of biodiesel reduced. Enter the unit cost or leave blank to use a default value. Savings are on the right. | S5: Enter the gallons of heating oil reduced. Enter the unit cost or leave blank to use a default value. Savings are on the right. | V5: Enter the gallons of jet fuel reduced. Enter the unit cost or leave blank to use a default value. Savings are on the right. | Y5: Enter the number of flights avoided and enter the average unit cost of all flights combined. Savings are on the right. | AB5: Enter the tons of coal reduced. Enter the unit cost or leave blank to use a default value. Savings are on the right.
A6: Calculation Description | B6: Unit quantity of natural gas reduced * unit cost (user-specified or default value) = Dollars saved. The calculator formula converts all units to therms. | G6: Miles reduced * unit cost (user-specified or default) = Dollars saved. | J6: Gallons reduced * unit cost (user-specified or default) = Dollars saved. | M6: Diesel gallons reduced * unit cost (user-specified or default) = Dollars saved. | P6: Biodiesel gallons reduced * unit cost (user-specified or default) = Dollars saved | S6: Heating oil gallons reduced * unit cost (user-specified or default) = Dollars saved. | V6: Jet fuel gallons reduced * unit cost (user-specified or default) = Dollars saved. | Y6: Number of flights avoided * average unit cost of flight (user-specified ) = Dollars saved. | AB6: Tons of coal reduced * unit cost (user-specified or default) = Dollars saved.
A7: Default Unit Cost | B7: 0.702 | C7: /therms | G7: 0.575 | H7: /mile | J7: 2.691 | K7: /gal | M7: 3.056 | N7: /gal | P7: 2.94 | Q7: /gal | S7: 2.421 | T7: /gal | V7: 1.08 | W7: /gal | AB7: 61.37 | AC7: /ton
B9: Amount of Natural Gas Reduced | C9: Unit (select) | D9: Unit Cost ($/unit selected) | E9: Therms Reduced | F9: Dollar Savings | G9: Miles Reduced | H9: Unit Cost ($/mile) | I9: Dollar Savings | J9: Reduced Gallons of Gas | K9: Unit Cost ($/gal) | L9: Dollar Savings | M9: Reduced Gallons of Diesel | N9: Unit Cost ($/gal) | O9: Dollar Savings | P9: Reduced Gallons of Biodiesel | Q9: Unit Cost ($/gal) | R9: Dollar Savings | S9: Reduced Gallons of Heating Oil | T9: Unit Cost ($/gal) | U9: Dollar Savings | V9: Reduced Gallons of Jet Fuel | W9: Unit Cost ($/gal) | X9: Dollar Savings | Y9: Flights Avoided (#) | Z9: Average Unit Cost ($/flight) | AA9: Dollar Savings | AB9: Reduced Tons of Coal | AC9: Unit Cost ($/ton) | AD9: Dollar Savings
A10: Example | B10: Green building initiatives reduced heat usage at two commercial buildings.
B11: 150000 | C11: therms | E11: =IF(C11="therms",B11,IF(C11="cubic feet",B11*'Conversion Factors'!$D$33/'Conversion Factors'!$D$31,IF(C11="BTU",B11/'Conversion Factors'!$D$31,0))) -> 150000 | F11: =E11*$B$7 -> 105300
A12: Totals - All Rows | E12: =SUM(E14:E24) -> 0 | F12: =SUM(F14:F24) -> 0 | G12: =SUM(G14:G24) -> 0 | I12: =SUM(I14:I24) -> 0 | J12: =SUM(J14:J24) -> 0 | L12: =SUM(L14:L24) -> 0 | M12: =SUM(M14:M24) -> 0 | O12: =SUM(O14:O24) -> 0 | P12: =SUM(P14:P24) -> 0 | R12: =SUM(R14:R24) -> 0 | S12: =SUM(S14:S24) -> 0 | U12: =SUM(U14:U24) -> 0 | V12: =SUM(V14:V24) -> 0 | X12: =SUM(X14:X24) -> 0 | Y12: =SUM(Y14:Y24) -> 0 | AA12: =SUM(AA14:AA24) -> 0 | AB12: =SUM(AB14:AB24) -> 0 | AD12: =SUM(AD14:AD24) -> 0
A14: =Aggregate!A9 -> Row 1 | C14: (Select) | E14: =IF(C14="therms", B14, IF( C14="cubic feet", B14*'Conversion Factors'!$D$33/'Conversion Factors'!$D$31, IF(C14="BTU", B14/'Conversion Factors'!$D$31, IF(C14="CCF", B14*'Conversion Factors'!$D$34/'Conversion Factors'!$D$31, 0)))) -> 0 | F14: =IF(D14="",E14*$B$7,B14*D14) -> 0 | I14: =IF(H14="",G14*$G$7,G14*H14) -> 0 | L14: =IF(K14="",J14*$J$7,J14*K14) -> 0 | O14: =IF(N14="",M14*$M$7,M14*N14) -> 0 | R14: =IF(Q14="", P14*$P$7, P14*Q14) -> 0 | U14: =IF(T14="",S14*$S$7,S14*T14) -> 0 | X14: =IF(W14="",V14*$V$7,V14*W14) -> 0 | AA14: =Y14*Z14 -> 0 | AD14: =IF(AC14="",AB14*$AB$7,AB14*AC14) -> 0
A15: =Aggregate!A10 -> Row 2 | C15: (Select) | E15: =IF(C15="therms", B15, IF( C15="cubic feet", B15*'Conversion Factors'!$D$33/'Conversion Factors'!$D$31, IF(C15="BTU", B15/'Conversion Factors'!$D$31, IF(C15="CCF", B15*'Conversion Factors'!$D$34/'Conversion Factors'!$D$31, 0)))) -> 0 | F15: =IF(D15="",E15*$B$7,B15*D15) -> 0 | I15: =IF(H15="",G15*$G$7,G15*H15) -> 0 | L15: =IF(K15="",J15*$J$7,J15*K15) -> 0 | O15: =IF(N15="",M15*$M$7,M15*N15) -> 0 | R15: =IF(Q15="", P15*$P$7, P15*Q15) -> 0 | U15: =IF(T15="",S15*$S$7,S15*T15) -> 0 | X15: =IF(W15="",V15*$V$7,V15*W15) -> 0 | AA15: =Y15*Z15 -> 0 | AD15: =IF(AC15="",AB15*$AB$7,AB15*AC15) -> 0
A16: =Aggregate!A11 -> Row 3 | C16: (Select) | E16: =IF(C16="therms", B16, IF( C16="cubic feet", B16*'Conversion Factors'!$D$33/'Conversion Factors'!$D$31, IF(C16="BTU", B16/'Conversion Factors'!$D$31, IF(C16="CCF", B16*'Conversion Factors'!$D$34/'Conversion Factors'!$D$31, 0)))) -> 0 | F16: =IF(D16="",E16*$B$7,B16*D16) -> 0 | I16: 0 | L16: 0 | O16: 0 | R16: 0 | U16: 0 | X16: 0 | AA16: 0 | AD16: 0
A17: =Aggregate!A12 -> Row 4 | C17: (Select) | E17: =IF(C17="therms", B17, IF( C17="cubic feet", B17*'Conversion Factors'!$D$33/'Conversion Factors'!$D$31, IF(C17="BTU", B17/'Conversion Factors'!$D$31, IF(C17="CCF", B17*'Conversion Factors'!$D$34/'Conversion Factors'!$D$31, 0)))) -> 0 | F17: 0 | I17: 0 | L17: 0 | O17: 0 | R17: 0 | U17: 0 | X17: 0 | AA17: 0 | AD17: 0
A18: =Aggregate!A13 -> Row 5 | C18: (Select) | E18: =IF(C18="therms", B18, IF( C18="cubic feet", B18*'Conversion Factors'!$D$33/'Conversion Factors'!$D$31, IF(C18="BTU", B18/'Conversion Factors'!$D$31, IF(C18="CCF", B18*'Conversion Factors'!$D$34/'Conversion Factors'!$D$31, 0)))) -> 0 | F18: 0 | I18: 0 | L18: 0 | O18: 0 | R18: 0 | U18: 0 | X18: 0 | AA18: 0 | AD18: 0
A19: =Aggregate!A14 -> Row 6 | C19: (Select) | E19: =IF(C19="therms", B19, IF( C19="cubic feet", B19*'Conversion Factors'!$D$33/'Conversion Factors'!$D$31, IF(C19="BTU", B19/'Conversion Factors'!$D$31, IF(C19="CCF", B19*'Conversion Factors'!$D$34/'Conversion Factors'!$D$31, 0)))) -> 0 | F19: =IF(D19="",E19*$B$7,B19*D19) -> 0 | I19: 0 | L19: 0 | O19: 0 | R19: 0 | U19: 0 | X19: 0 | AA19: 0 | AD19: 0
A20: =Aggregate!A15 -> Row 7 | C20: (Select) | E20: =IF(C20="therms", B20, IF( C20="cubic feet", B20*'Conversion Factors'!$D$33/'Conversion Factors'!$D$31, IF(C20="BTU", B20/'Conversion Factors'!$D$31, IF(C20="CCF", B20*'Conversion Factors'!$D$34/'Conversion Factors'!$D$31, 0)))) -> 0 | F20: 0 | I20: 0 | L20: 0 | O20: 0 | R20: 0 | U20: 0 | X20: 0 | AA20: 0 | AD20: 0
A21: =Aggregate!A16 -> Row 8 | C21: (Select) | E21: =IF(C21="therms", B21, IF( C21="cubic feet", B21*'Conversion Factors'!$D$33/'Conversion Factors'!$D$31, IF(C21="BTU", B21/'Conversion Factors'!$D$31, IF(C21="CCF", B21*'Conversion Factors'!$D$34/'Conversion Factors'!$D$31, 0)))) -> 0 | F21: 0 | I21: 0 | L21: 0 | O21: 0 | R21: 0 | U21: 0 | X21: 0 | AA21: 0 | AD21: 0
A22: =Aggregate!A17 -> Row 9 | C22: (Select) | E22: =IF(C22="therms", B22, IF( C22="cubic feet", B22*'Conversion Factors'!$D$33/'Conversion Factors'!$D$31, IF(C22="BTU", B22/'Conversion Factors'!$D$31, IF(C22="CCF", B22*'Conversion Factors'!$D$34/'Conversion Factors'!$D$31, 0)))) -> 0 | F22: =IF(D22="",E22*$B$7,B22*D22) -> 0 | I22: 0 | L22: 0 | O22: 0 | R22: 0 | U22: 0 | X22: 0 | AA22: 0 | AD22: 0
A23: =Aggregate!A18 -> Row 10 | C23: (Select) | E23: =IF(C23="therms", B23, IF( C23="cubic feet", B23*'Conversion Factors'!$D$33/'Conversion Factors'!$D$31, IF(C23="BTU", B23/'Conversion Factors'!$D$31, IF(C23="CCF", B23*'Conversion Factors'!$D$34/'Conversion Factors'!$D$31, 0)))) -> 0 | F23: =IF(D23="",E23*$B$7,B23*D23) -> 0 | I23: 0 | L23: 0 | O23: 0 | R23: 0 | U23: 0 | X23: 0 | AA23: 0 | AD23: 0
A24: =Aggregate!A19 -> Row 11 | C24: (Select) | E24: =IF(C24="therms", B24, IF( C24="cubic feet", B24*'Conversion Factors'!$D$33/'Conversion Factors'!$D$31, IF(C24="BTU", B24/'Conversion Factors'!$D$31, IF(C24="CCF", B24*'Conversion Factors'!$D$34/'Conversion Factors'!$D$31, 0)))) -> 0 | F24: =IF(D24="",E24*$B$7,B24*D24) -> 0 | I24: 0 | L24: =IF(K24="",J24*$J$7,J24*K24) -> 0 | O24: =IF(N24="",M24*$M$7,M24*N24) -> 0 | R24: =IF(Q24="", P24*$P$7, P24*Q24) -> 0 | U24: =IF(T24="",S24*$S$7,S24*T24) -> 0 | X24: =IF(W24="",V24*$V$7,V24*W24) -> 0 | AA24: =Y24*Z24 -> 0 | AD24: =IF(AC24="",AB24*$AB$7,AB24*AC24) -> 0
A26: Color Key | C26: therms
A27: Enter value | C27: cubic feet
A28: Use drop-down menu | C28: BTU
A29: Do not change - calculation
A31: Sources
A32: NATURAL GAS | B32: Energy Information Administration (EIA), 2020
A33: VEHICLE MILES | B33: Internal Revenue Service (IRS), 2019
A34: MOTOR GASOLINE | B34: Energy Information Administration (EIA), 2020
A35: DIESEL | B35: Energy Information Administration (EIA), 2020
A36: BIODIESEL | B36: U.S. Department of Energy, Energy Efficiency and Renewable Energy, 2020
A37: HEATING OIL | B37: Energy Information Administration (EIA), 2020
A38: JET FUEL | B38: US Department of Transportation, Bureau of Transportation Statistics, 2020
A39: COAL | B39: Energy Information Administration (EIA), 2019

Sheet Water Use
B1: Water Use
B2: This tab computes the cost savings from reducing water usage.
A4: Type of Reduction | B4: Water Use
A5: How to use this tab | B5: Enter water use reduced in gallons. Enter the unit cost or a national default unit cost will be used. Dollar savings are on the right. This tab is for projects that conserved water. If the project also reduced water pollutant quantities, enter the gallons of water reduced (if any) on this tab, and enter the pollutant reductions in the Water Pollution tab.
A6: Calculation Description | B6: Gallons reduced * unit cost (user supplied or default value) = Dollars saved.
B7: Gallons Reduced | C7: Unit Cost ($/gal) | D7: Dollar Savings
A8: Example | B8: A facility plant adopted a new water conservation technology to reduce process water use by 3 million gallons annually.
B9: 3000000 | D9: =IF(C9="",B9*'Water Charges'!$E$3,C9*B9) -> 15505.90909
A10: Totals - All Rows | B10: =SUM(B12:B22) -> 0 | D10: =SUM(D12:D22) -> 0
A12: =Aggregate!A9 -> Row 1 | D12: =IF(C12="",B12*'Water Charges'!$E$3,C12*B12) -> 0
A13: =Aggregate!A10 -> Row 2 | D13: =IF(C13="",B13*'Water Charges'!$E$3,C13*B13) -> 0
A14: =Aggregate!A11 -> Row 3 | D14: =IF(C14="",B14*'Water Charges'!$E$3,C14*B14) -> 0
A15: =Aggregate!A12 -> Row 4 | D15: =IF(C15="",B15*'Water Charges'!$E$3,C15*B15) -> 0
A16: =Aggregate!A13 -> Row 5 | D16: =IF(C16="",B16*'Water Charges'!$E$3,C16*B16) -> 0
A17: =Aggregate!A14 -> Row 6 | D17: =IF(C17="",B17*'Water Charges'!$E$3,C17*B17) -> 0
A18: =Aggregate!A15 -> Row 7 | D18: =IF(C18="",B18*'Water Charges'!$E$3,C18*B18) -> 0
A19: =Aggregate!A16 -> Row 8 | D19: =IF(C19="",B19*'Water Charges'!$E$3,C19*B19) -> 0
A20: =Aggregate!A17 -> Row 9 | D20: =IF(C20="",B20*'Water Charges'!$E$3,C20*B20) -> 0
A21: =Aggregate!A18 -> Row 10 | D21: =IF(C21="",B21*'Water Charges'!$E$3,C21*B21) -> 0
A22: =Aggregate!A19 -> Row 11 | D22: =IF(C22="",B22*'Water Charges'!$E$3,C22*B22) -> 0
A24: Color Key
A25: Enter value
A26: Use drop-down menu
A27: Do not change - calculation
A29: Sources
A30: WATER USE | B30: AWWA 2019 Rate Survey. Exhibit 2. | C30: Unless getting water free from an underground source, facilities are charged twice for water -- once to receive it, and again to have the discharged water taken away and treated.

Sheet Water Pollution
B1: Water Pollution
B2: This tab computes cost savings from reducing discharges of conventional, nonconventional, and toxic pollutants to water (BOD/COD, TSS, FOG, toxics, and nutrients, etc.). This tab converts reductions in discharges to water that impair water quality to pounds of pollutants. Use the "General Wastewater" section if you don't have a wastewater permit and/or don't know the category of impairment to water quality. If you do know the category of impairment and can make some modeled estimates or use water-permit methodologies to calculate discharges, then enter your data in the appropriate impairment column.
A4: Type of Reduction | B4: General Wastewater | E4: BOD/COD (Biological Oxygen Demand or Chemical Oxygen Demand) | J4: Total Suspended Solids (TSS) | O4: Fats, Oils, and Grease (FOG) | T4: Other Conventional Pollutants | Y4: Toxics and Nonconventional Pollutants | AD4: Nutrients | AI4: Total
A5: How to use this tab | B5: Enter gallons reduced. Enter the unit cost of treatment or a national default unit cost will be used. If reductions in wastewater are associated with reductions in water use, enter the reductions in water use in the Water Use tab. | E5: Enter the BOD/COD quantity reduced in a unit from the drop down. Enter the unit cost or a national default unit cost will be used. Savings are on the right. | J5: Enter the TSS quantity reduced in a unit from the drop down. Enter the unit cost or a national default unit cost will be used. Savings are on the right. | O5: Enter quantity of fats, oils, and grease (FOG) waste reduced, select the appropriate unit, and enter the unit cost (no default is available). To avoid double counting, do not enter these quantities in any other tab. | T5: Enter the quantity of other conventional water pollutants reduced, select the appropriate unit, and enter the unit cost (no default is available). To avoid double counting, do not enter these quantities in any other tab. | Y5: Enter the quantity of toxic and/or nonconventional water pollutants reduced, select the appropriate unit, and enter the unit cost (no default is available). To avoid double counting, do not enter these quantities in any other tab. | AD5: Enter the quantity of nutrients reduced in a unit from the drop down and enter the unit cost (no default is available).
A6: Calculation Description | B6: Gallons reduced * unit cost (user-specified or default) = Dollars saved. | E6: Quantity of BOD/COD reduced (in user-specified units) * unit cost (user-specified or default) = Dollars saved. A formula converts all units to pounds. To calculate mass (e.g., milligrams) of BOD reduced, multiply the reduction concentration of BOD measured (e.g., mg/L) by the flow rate (e.g., L/day) to get weight (e.g., mg) per day. Then multiply by the length of the reporting period (e.g., 365 days) to get total weight of BOD discharged. | J6: Quantity of BOD/COD reduced (in user-specified units) * unit cost (user-specified or default) = Dollars saved. A formula converts all units to pounds. To calculate mass (e.g., milligrams) of TSS reduced, multiply the reduction concentration of TSS measured (e.g., mg/L) by the flow rate (e.g., L/day) to get weight (e.g., mg) per day. Then multiply by the length of the reporting period (e.g., 365 days) to get total weight of TSS discharged. | O6: Quantity of FOG reduced (in user-specified units) * unit cost (user-specified) = Dollars saved. A formula converts all units to pounds. To calculate mass (e.g., milligrams) of FOG reduced, multiply the reduction concentration of FOG measured (e.g., mg/L) by the flow rate (e.g., L/day) to get weight (e.g., mg) per day. Then multiply by the length of the reporting period (e.g., 365 days) to get total weight of FOG discharged. | T6: Quantity of toxics reduced (in user-specified units) * unit cost (user-specified) = Dollars saved. A formula converts all units to pounds. To calculate mass (e.g., milligrams) of toxics reduced, multiply the reduction concentration of toxics measured (e.g., mg/L) by the flow rate (e.g., L/day) to get weight (e.g., mg) per day. Then multiply by the length of the reporting period (e.g., 365 days) to get total weight of toxics discharged. | Y6: Quantity of toxics reduced (in user-specified units) * unit cost (user-specified) = Dollars saved. A formula converts all units to pounds. To calculate mass (e.g., milligrams) of toxics reduced, multiply the reduction concentration of toxics measured (e.g., mg/L) by the flow rate (e.g., L/day) to get weight (e.g., mg) per day. Then multiply by the length of the reporting period (e.g., 365 days) to get total weight of toxics discharged. | AD6: Quantity of nutrients reduced (in user-specified units) * user-specified unit cost = Dollars saved. A formula converts all units to pounds.
B7: Reduced Gallons of Wastewater | C7: Unit Cost ($/gal) | D7: Dollars Savings | E7: Reduced Quantity of BOD/COD | F7: Units (select) | G7: Unit Cost ($/unit selected) | H7: Pounds Reduced | I7: Dollar Savings | J7: Reduced Quantity of TSS | K7: Units (select) | L7: Unit Cost ($/unit selected) | M7: Pounds Reduced | N7: Dollar Savings | O7: Reduced Quantity of FOG | P7: Units (select) | Q7: Unit Cost ($/unit selected) | R7: Pounds Reduced | S7: Dollar Savings | T7: Reduced Quantity of toxics | U7: Units (select) | V7: Unit Cost ($/unit selected) | W7: Pounds Reduced | X7: Dollar Savings | Y7: Reduced Quantity of toxics | Z7: Units (select) | AA7: Unit Cost ($/unit selected) | AB7: Pounds Reduced | AC7: Dollar Savings | AD7: Reduced Quantity of Nutrients | AE7: Units (select) | AF7: Unit Cost ($/unit selected) | AG7: Pounds Reduced | AH7: Dollar Savings | AI7: Total Savings
A8: Example (Enter quantities in this worksheet. Enter action descriptions in EPA reporting templates.) | B8: A metal finishing facility adopted electrocoagulation technology, reducing process water use/discharge by 1 million gallons/yr. | E8: Through the adoption of a new filtration system in one of its plants, GMC reduced the quantity of BOD/COD discharged by 500 kilograms.
B9: 1000000 | D9: =IF(C9="",B9*'Water Charges'!$B$3,C9*B9) -> 5830.695187 | E9: 500 | F9: kg | H9: 1102.5 | I9: =IF(G9="",H9*'Water Charges'!$D$3,H9*G9) -> 415.09125
A10: Totals - All Rows | B10: =SUM(B12:B22) -> 0 | D10: =SUM(D12:D22) -> 0 | H10: =SUM(H12:H22) -> 0 | I10: =SUM(I12:I22) -> 0 | M10: =SUM(M12:M22) -> 0 | N10: =SUM(N12:N22) -> 0 | R10: =SUM(R12:R22) -> 0 | S10: =SUM(S12:S22) -> 0 | W10: =SUM(W12:W22) -> 0 | X10: =SUM(X12:X22) -> 0 | AB10: =SUM(AB12:AB22) -> 0 | AC10: =SUM(AC12:AC22) -> 0 | AG10: =SUM(AG12:AG22) -> 0 | AH10: =SUM(AH12:AH22) -> 0 | AI10: =SUM(AI12:AI22) -> 0
A12: =Aggregate!A9 -> Row 1 | D12: =IF(C12="",B12*'Water Charges'!$B$3,C12*B12) -> 0 | F12: (Select) | H12: =IF(F12="lbs",E12,IF(F12="kg",E12*'Conversion Factors'!$D$21,IF(F12="tons",E12*'Conversion Factors'!$D$23,IF(F12="metric tons",E12*'Conversion Factors'!$D$22/'Conversion Factors'!$D$20,0)))) -> 0 | I12: =IF(G12="",H12*'Water Charges'!$D$3,H12*G12) -> 0 | K12: (Select) | M12: =IF(K12="lbs",J12,IF(K12="kg",J12*'Conversion Factors'!$D$21,IF(K12="tons",J12*'Conversion Factors'!$D$23,IF(K12="metric tons",J12*'Conversion Factors'!$D$22/'Conversion Factors'!$D$20,0)))) -> 0 | N12: =IF(L12="",M12*'Water Charges'!$C$3,M12*L12) -> 0 | P12: (Select) | R12: =IF(P12="lbs",O12,IF(P12="kg",O12*'Conversion Factors'!$D$21,IF(P12="tons",O12*'Conversion Factors'!$D$23,IF(P12="metric tons",O12*'Conversion Factors'!$D$22/'Conversion Factors'!$D$20,0)))) -> 0 | S12: =O12*Q12 -> 0 | U12: (Select) | W12: =IF(U12="lbs",T12,IF(U12="kg",T12*'Conversion Factors'!$D$21,IF(U12="tons",T12*'Conversion Factors'!$D$23,IF(U12="metric tons",T12*'Conversion Factors'!$D$22/'Conversion Factors'!$D$20,0)))) -> 0 | X12: =T12*V12 -> 0 | Z12: (Select) | AB12: =IF(Z12="lbs",Y12,IF(Z12="kg",Y12*'Conversion Factors'!$D$21,IF(Z12="tons",Y12*'Conversion Factors'!$D$23,IF(Z12="metric tons",Y12*'Conversion Factors'!$D$22/'Conversion Factors'!$D$20,0)))) -> 0 | AC12: =Y12*AA12 -> 0 | AE12: (Select) | AG12: =IF(AE12="lbs",AD12,IF(AE12="kg",AD12*'Conversion Factors'!$D$21,IF(AE12="tons",AD12*'Conversion Factors'!$D$23,IF(AE12="metric tons",AD12*'Conversion Factors'!$D$22/'Conversion Factors'!$D$20,0)))) -> 0 | AH12: =AD12*AF12 -> 0 | AI12: =SUM(D12,AH12,N12,S12,AC12,I12,X12) -> 0
A13: =Aggregate!A10 -> Row 2 | D13: =IF(C13="",B13*'Water Charges'!$B$3,C13*B13) -> 0 | F13: (Select) | H13: =IF(F13="lbs",E13,IF(F13="kg",E13*'Conversion Factors'!$D$21,IF(F13="tons",E13*'Conversion Factors'!$D$23,IF(F13="metric tons",E13*'Conversion Factors'!$D$22/'Conversion Factors'!$D$20,0)))) -> 0 | I13: =IF(G13="",H13*'Water Charges'!$D$3,H13*G13) -> 0 | K13: (Select) | M13: =IF(K13="lbs",J13,IF(K13="kg",J13*'Conversion Factors'!$D$21,IF(K13="tons",J13*'Conversion Factors'!$D$23,IF(K13="metric tons",J13*'Conversion Factors'!$D$22/'Conversion Factors'!$D$20,0)))) -> 0 | N13: =IF(L13="",M13*'Water Charges'!$C$3,M13*L13) -> 0 | P13: (Select) | R13: =IF(P13="lbs",O13,IF(P13="kg",O13*'Conversion Factors'!$D$21,IF(P13="tons",O13*'Conversion Factors'!$D$23,IF(P13="metric tons",O13*'Conversion Factors'!$D$22/'Conversion Factors'!$D$20,0)))) -> 0 | S13: =O13*Q13 -> 0 | U13: (Select) | W13: =IF(U13="lbs",T13,IF(U13="kg",T13*'Conversion Factors'!$D$21,IF(U13="tons",T13*'Conversion Factors'!$D$23,IF(U13="metric tons",T13*'Conversion Factors'!$D$22/'Conversion Factors'!$D$20,0)))) -> 0 | X13: =T13*V13 -> 0 | Z13: (Select) | AB13: =IF(Z13="lbs",Y13,IF(Z13="kg",Y13*'Conversion Factors'!$D$21,IF(Z13="tons",Y13*'Conversion Factors'!$D$23,IF(Z13="metric tons",Y13*'Conversion Factors'!$D$22/'Conversion Factors'!$D$20,0)))) -> 0 | AC13: =Y13*AA13 -> 0 | AE13: (Select) | AG13: =IF(AE13="lbs",AD13,IF(AE13="kg",AD13*'Conversion Factors'!$D$21,IF(AE13="tons",AD13*'Conversion Factors'!$D$23,IF(AE13="metric tons",AD13*'Conversion Factors'!$D$22/'Conversion Factors'!$D$20,0)))) -> 0 | AH13: =AD13*AF13 -> 0 | AI13: =SUM(D13,AH13,N13,S13,AC13,I13,X13) -> 0
A14: =Aggregate!A11 -> Row 3 | D14: =IF(C14="",B14*'Water Charges'!$B$3,C14*B14) -> 0 | F14: (Select) | H14: =IF(F14="lbs",E14,IF(F14="kg",E14*'Conversion Factors'!$D$21,IF(F14="tons",E14*'Conversion Factors'!$D$23,IF(F14="metric tons",E14*'Conversion Factors'!$D$22/'Conversion Factors'!$D$20,0)))) -> 0 | I14: =IF(G14="",H14*'Water Charges'!$D$3,H14*G14) -> 0 | K14: (Select) | M14: =IF(K14="lbs",J14,IF(K14="kg",J14*'Conversion Factors'!$D$21,IF(K14="tons",J14*'Conversion Factors'!$D$23,IF(K14="metric tons",J14*'Conversion Factors'!$D$22/'Conversion Factors'!$D$20,0)))) -> 0 | N14: =IF(L14="",M14*'Water Charges'!$C$3,M14*L14) -> 0 | P14: (Select) | R14: =IF(P14="lbs",O14,IF(P14="kg",O14*'Conversion Factors'!$D$21,IF(P14="tons",O14*'Conversion Factors'!$D$23,IF(P14="metric tons",O14*'Conversion Factors'!$D$22/'Conversion Factors'!$D$20,0)))) -> 0 | S14: 0 | U14: (Select) | W14: =IF(U14="lbs",T14,IF(U14="kg",T14*'Conversion Factors'!$D$21,IF(U14="tons",T14*'Conversion Factors'!$D$23,IF(U14="metric tons",T14*'Conversion Factors'!$D$22/'Conversion Factors'!$D$20,0)))) -> 0 | X14: 0 | Z14: (Select) | AB14: =IF(Z14="lbs",Y14,IF(Z14="kg",Y14*'Conversion Factors'!$D$21,IF(Z14="tons",Y14*'Conversion Factors'!$D$23,IF(Z14="metric tons",Y14*'Conversion Factors'!$D$22/'Conversion Factors'!$D$20,0)))) -> 0 | AC14: 0 | AE14: (Select) | AG14: =IF(AE14="lbs",AD14,IF(AE14="kg",AD14*'Conversion Factors'!$D$21,IF(AE14="tons",AD14*'Conversion Factors'!$D$23,IF(AE14="metric tons",AD14*'Conversion Factors'!$D$22/'Conversion Factors'!$D$20,0)))) -> 0 | AH14: 0 | AI14: 0
A15: =Aggregate!A12 -> Row 4 | D15: =IF(C15="",B15*'Water Charges'!$B$3,C15*B15) -> 0 | F15: (Select) | H15: =IF(F15="lbs",E15,IF(F15="kg",E15*'Conversion Factors'!$D$21,IF(F15="tons",E15*'Conversion Factors'!$D$23,IF(F15="metric tons",E15*'Conversion Factors'!$D$22/'Conversion Factors'!$D$20,0)))) -> 0 | I15: =IF(G15="",H15*'Water Charges'!$D$3,H15*G15) -> 0 | K15: (Select) | M15: =IF(K15="lbs",J15,IF(K15="kg",J15*'Conversion Factors'!$D$21,IF(K15="tons",J15*'Conversion Factors'!$D$23,IF(K15="metric tons",J15*'Conversion Factors'!$D$22/'Conversion Factors'!$D$20,0)))) -> 0 | N15: =IF(L15="",M15*'Water Charges'!$C$3,M15*L15) -> 0 | P15: (Select) | R15: =IF(P15="lbs",O15,IF(P15="kg",O15*'Conversion Factors'!$D$21,IF(P15="tons",O15*'Conversion Factors'!$D$23,IF(P15="metric tons",O15*'Conversion Factors'!$D$22/'Conversion Factors'!$D$20,0)))) -> 0 | S15: 0 | U15: (Select) | W15: =IF(U15="lbs",T15,IF(U15="kg",T15*'Conversion Factors'!$D$21,IF(U15="tons",T15*'Conversion Factors'!$D$23,IF(U15="metric tons",T15*'Conversion Factors'!$D$22/'Conversion Factors'!$D$20,0)))) -> 0 | X15: 0 | Z15: (Select) | AB15: =IF(Z15="lbs",Y15,IF(Z15="kg",Y15*'Conversion Factors'!$D$21,IF(Z15="tons",Y15*'Conversion Factors'!$D$23,IF(Z15="metric tons",Y15*'Conversion Factors'!$D$22/'Conversion Factors'!$D$20,0)))) -> 0 | AC15: 0 | AE15: (Select) | AG15: =IF(AE15="lbs",AD15,IF(AE15="kg",AD15*'Conversion Factors'!$D$21,IF(AE15="tons",AD15*'Conversion Factors'!$D$23,IF(AE15="metric tons",AD15*'Conversion Factors'!$D$22/'Conversion Factors'!$D$20,0)))) -> 0 | AH15: 0 | AI15: 0
A16: =Aggregate!A13 -> Row 5 | D16: =IF(C16="",B16*'Water Charges'!$B$3,C16*B16) -> 0 | F16: (Select) | H16: =IF(F16="lbs",E16,IF(F16="kg",E16*'Conversion Factors'!$D$21,IF(F16="tons",E16*'Conversion Factors'!$D$23,IF(F16="metric tons",E16*'Conversion Factors'!$D$22/'Conversion Factors'!$D$20,0)))) -> 0 | I16: =IF(G16="",H16*'Water Charges'!$D$3,H16*G16) -> 0 | K16: (Select) | M16: =IF(K16="lbs",J16,IF(K16="kg",J16*'Conversion Factors'!$D$21,IF(K16="tons",J16*'Conversion Factors'!$D$23,IF(K16="metric tons",J16*'Conversion Factors'!$D$22/'Conversion Factors'!$D$20,0)))) -> 0 | N16: =IF(L16="",M16*'Water Charges'!$C$3,M16*L16) -> 0 | P16: (Select) | R16: =IF(P16="lbs",O16,IF(P16="kg",O16*'Conversion Factors'!$D$21,IF(P16="tons",O16*'Conversion Factors'!$D$23,IF(P16="metric tons",O16*'Conversion Factors'!$D$22/'Conversion Factors'!$D$20,0)))) -> 0 | S16: 0 | U16: (Select) | W16: =IF(U16="lbs",T16,IF(U16="kg",T16*'Conversion Factors'!$D$21,IF(U16="tons",T16*'Conversion Factors'!$D$23,IF(U16="metric tons",T16*'Conversion Factors'!$D$22/'Conversion Factors'!$D$20,0)))) -> 0 | X16: 0 | Z16: (Select) | AB16: =IF(Z16="lbs",Y16,IF(Z16="kg",Y16*'Conversion Factors'!$D$21,IF(Z16="tons",Y16*'Conversion Factors'!$D$23,IF(Z16="metric tons",Y16*'Conversion Factors'!$D$22/'Conversion Factors'!$D$20,0)))) -> 0 | AC16: 0 | AE16: (Select) | AG16: =IF(AE16="lbs",AD16,IF(AE16="kg",AD16*'Conversion Factors'!$D$21,IF(AE16="tons",AD16*'Conversion Factors'!$D$23,IF(AE16="metric tons",AD16*'Conversion Factors'!$D$22/'Conversion Factors'!$D$20,0)))) -> 0 | AH16: 0 | AI16: 0
A17: =Aggregate!A14 -> Row 6 | D17: =IF(C17="",B17*'Water Charges'!$B$3,C17*B17) -> 0 | F17: (Select) | H17: =IF(F17="lbs",E17,IF(F17="kg",E17*'Conversion Factors'!$D$21,IF(F17="tons",E17*'Conversion Factors'!$D$23,IF(F17="metric tons",E17*'Conversion Factors'!$D$22/'Conversion Factors'!$D$20,0)))) -> 0 | I17: =IF(G17="",H17*'Water Charges'!$D$3,H17*G17) -> 0 | K17: (Select) | M17: =IF(K17="lbs",J17,IF(K17="kg",J17*'Conversion Factors'!$D$21,IF(K17="tons",J17*'Conversion Factors'!$D$23,IF(K17="metric tons",J17*'Conversion Factors'!$D$22/'Conversion Factors'!$D$20,0)))) -> 0 | N17: =IF(L17="",M17*'Water Charges'!$C$3,M17*L17) -> 0 | P17: (Select) | R17: =IF(P17="lbs",O17,IF(P17="kg",O17*'Conversion Factors'!$D$21,IF(P17="tons",O17*'Conversion Factors'!$D$23,IF(P17="metric tons",O17*'Conversion Factors'!$D$22/'Conversion Factors'!$D$20,0)))) -> 0 | S17: 0 | U17: (Select) | W17: =IF(U17="lbs",T17,IF(U17="kg",T17*'Conversion Factors'!$D$21,IF(U17="tons",T17*'Conversion Factors'!$D$23,IF(U17="metric tons",T17*'Conversion Factors'!$D$22/'Conversion Factors'!$D$20,0)))) -> 0 | X17: 0 | Z17: (Select) | AB17: =IF(Z17="lbs",Y17,IF(Z17="kg",Y17*'Conversion Factors'!$D$21,IF(Z17="tons",Y17*'Conversion Factors'!$D$23,IF(Z17="metric tons",Y17*'Conversion Factors'!$D$22/'Conversion Factors'!$D$20,0)))) -> 0 | AC17: 0 | AE17: (Select) | AG17: =IF(AE17="lbs",AD17,IF(AE17="kg",AD17*'Conversion Factors'!$D$21,IF(AE17="tons",AD17*'Conversion Factors'!$D$23,IF(AE17="metric tons",AD17*'Conversion Factors'!$D$22/'Conversion Factors'!$D$20,0)))) -> 0 | AH17: 0 | AI17: 0
A18: =Aggregate!A15 -> Row 7 | D18: =IF(C18="",B18*'Water Charges'!$B$3,C18*B18) -> 0 | F18: (Select) | H18: =IF(F18="lbs",E18,IF(F18="kg",E18*'Conversion Factors'!$D$21,IF(F18="tons",E18*'Conversion Factors'!$D$23,IF(F18="metric tons",E18*'Conversion Factors'!$D$22/'Conversion Factors'!$D$20,0)))) -> 0 | I18: =IF(G18="",H18*'Water Charges'!$D$3,H18*G18) -> 0 | K18: (Select) | M18: =IF(K18="lbs",J18,IF(K18="kg",J18*'Conversion Factors'!$D$21,IF(K18="tons",J18*'Conversion Factors'!$D$23,IF(K18="metric tons",J18*'Conversion Factors'!$D$22/'Conversion Factors'!$D$20,0)))) -> 0 | N18: =IF(L18="",M18*'Water Charges'!$C$3,M18*L18) -> 0 | P18: (Select) | R18: =IF(P18="lbs",O18,IF(P18="kg",O18*'Conversion Factors'!$D$21,IF(P18="tons",O18*'Conversion Factors'!$D$23,IF(P18="metric tons",O18*'Conversion Factors'!$D$22/'Conversion Factors'!$D$20,0)))) -> 0 | S18: 0 | U18: (Select) | W18: =IF(U18="lbs",T18,IF(U18="kg",T18*'Conversion Factors'!$D$21,IF(U18="tons",T18*'Conversion Factors'!$D$23,IF(U18="metric tons",T18*'Conversion Factors'!$D$22/'Conversion Factors'!$D$20,0)))) -> 0 | X18: 0 | Z18: (Select) | AB18: =IF(Z18="lbs",Y18,IF(Z18="kg",Y18*'Conversion Factors'!$D$21,IF(Z18="tons",Y18*'Conversion Factors'!$D$23,IF(Z18="metric tons",Y18*'Conversion Factors'!$D$22/'Conversion Factors'!$D$20,0)))) -> 0 | AC18: 0 | AE18: (Select) | AG18: =IF(AE18="lbs",AD18,IF(AE18="kg",AD18*'Conversion Factors'!$D$21,IF(AE18="tons",AD18*'Conversion Factors'!$D$23,IF(AE18="metric tons",AD18*'Conversion Factors'!$D$22/'Conversion Factors'!$D$20,0)))) -> 0 | AH18: 0 | AI18: 0
A19: =Aggregate!A16 -> Row 8 | D19: =IF(C19="",B19*'Water Charges'!$B$3,C19*B19) -> 0 | F19: (Select) | H19: =IF(F19="lbs",E19,IF(F19="kg",E19*'Conversion Factors'!$D$21,IF(F19="tons",E19*'Conversion Factors'!$D$23,IF(F19="metric tons",E19*'Conversion Factors'!$D$22/'Conversion Factors'!$D$20,0)))) -> 0 | I19: =IF(G19="",H19*'Water Charges'!$D$3,H19*G19) -> 0 | K19: (Select) | M19: =IF(K19="lbs",J19,IF(K19="kg",J19*'Conversion Factors'!$D$21,IF(K19="tons",J19*'Conversion Factors'!$D$23,IF(K19="metric tons",J19*'Conversion Factors'!$D$22/'Conversion Factors'!$D$20,0)))) -> 0 | N19: =IF(L19="",M19*'Water Charges'!$C$3,M19*L19) -> 0 | P19: (Select) | R19: =IF(P19="lbs",O19,IF(P19="kg",O19*'Conversion Factors'!$D$21,IF(P19="tons",O19*'Conversion Factors'!$D$23,IF(P19="metric tons",O19*'Conversion Factors'!$D$22/'Conversion Factors'!$D$20,0)))) -> 0 | S19: 0 | U19: (Select) | W19: =IF(U19="lbs",T19,IF(U19="kg",T19*'Conversion Factors'!$D$21,IF(U19="tons",T19*'Conversion Factors'!$D$23,IF(U19="metric tons",T19*'Conversion Factors'!$D$22/'Conversion Factors'!$D$20,0)))) -> 0 | X19: 0 | Z19: (Select) | AB19: =IF(Z19="lbs",Y19,IF(Z19="kg",Y19*'Conversion Factors'!$D$21,IF(Z19="tons",Y19*'Conversion Factors'!$D$23,IF(Z19="metric tons",Y19*'Conversion Factors'!$D$22/'Conversion Factors'!$D$20,0)))) -> 0 | AC19: 0 | AE19: (Select) | AG19: =IF(AE19="lbs",AD19,IF(AE19="kg",AD19*'Conversion Factors'!$D$21,IF(AE19="tons",AD19*'Conversion Factors'!$D$23,IF(AE19="metric tons",AD19*'Conversion Factors'!$D$22/'Conversion Factors'!$D$20,0)))) -> 0 | AH19: 0 | AI19: 0
A20: =Aggregate!A17 -> Row 9 | D20: =IF(C20="",B20*'Water Charges'!$B$3,C20*B20) -> 0 | F20: (Select) | H20: =IF(F20="lbs",E20,IF(F20="kg",E20*'Conversion Factors'!$D$21,IF(F20="tons",E20*'Conversion Factors'!$D$23,IF(F20="metric tons",E20*'Conversion Factors'!$D$22/'Conversion Factors'!$D$20,0)))) -> 0 | I20: =IF(G20="",H20*'Water Charges'!$D$3,H20*G20) -> 0 | K20: (Select) | M20: =IF(K20="lbs",J20,IF(K20="kg",J20*'Conversion Factors'!$D$21,IF(K20="tons",J20*'Conversion Factors'!$D$23,IF(K20="metric tons",J20*'Conversion Factors'!$D$22/'Conversion Factors'!$D$20,0)))) -> 0 | N20: =IF(L20="",M20*'Water Charges'!$C$3,M20*L20) -> 0 | P20: (Select) | R20: =IF(P20="lbs",O20,IF(P20="kg",O20*'Conversion Factors'!$D$21,IF(P20="tons",O20*'Conversion Factors'!$D$23,IF(P20="metric tons",O20*'Conversion Factors'!$D$22/'Conversion Factors'!$D$20,0)))) -> 0 | S20: 0 | U20: (Select) | W20: =IF(U20="lbs",T20,IF(U20="kg",T20*'Conversion Factors'!$D$21,IF(U20="tons",T20*'Conversion Factors'!$D$23,IF(U20="metric tons",T20*'Conversion Factors'!$D$22/'Conversion Factors'!$D$20,0)))) -> 0 | X20: 0 | Z20: (Select) | AB20: =IF(Z20="lbs",Y20,IF(Z20="kg",Y20*'Conversion Factors'!$D$21,IF(Z20="tons",Y20*'Conversion Factors'!$D$23,IF(Z20="metric tons",Y20*'Conversion Factors'!$D$22/'Conversion Factors'!$D$20,0)))) -> 0 | AC20: 0 | AE20: (Select) | AG20: =IF(AE20="lbs",AD20,IF(AE20="kg",AD20*'Conversion Factors'!$D$21,IF(AE20="tons",AD20*'Conversion Factors'!$D$23,IF(AE20="metric tons",AD20*'Conversion Factors'!$D$22/'Conversion Factors'!$D$20,0)))) -> 0 | AH20: 0 | AI20: 0
A21: =Aggregate!A18 -> Row 10 | D21: =IF(C21="",B21*'Water Charges'!$B$3,C21*B21) -> 0 | F21: (Select) | H21: =IF(F21="lbs",E21,IF(F21="kg",E21*'Conversion Factors'!$D$21,IF(F21="tons",E21*'Conversion Factors'!$D$23,IF(F21="metric tons",E21*'Conversion Factors'!$D$22/'Conversion Factors'!$D$20,0)))) -> 0 | I21: =IF(G21="",H21*'Water Charges'!$D$3,H21*G21) -> 0 | K21: (Select) | M21: =IF(K21="lbs",J21,IF(K21="kg",J21*'Conversion Factors'!$D$21,IF(K21="tons",J21*'Conversion Factors'!$D$23,IF(K21="metric tons",J21*'Conversion Factors'!$D$22/'Conversion Factors'!$D$20,0)))) -> 0 | N21: =IF(L21="",M21*'Water Charges'!$C$3,M21*L21) -> 0 | P21: (Select) | R21: =IF(P21="lbs",O21,IF(P21="kg",O21*'Conversion Factors'!$D$21,IF(P21="tons",O21*'Conversion Factors'!$D$23,IF(P21="metric tons",O21*'Conversion Factors'!$D$22/'Conversion Factors'!$D$20,0)))) -> 0 | S21: 0 | U21: (Select) | W21: =IF(U21="lbs",T21,IF(U21="kg",T21*'Conversion Factors'!$D$21,IF(U21="tons",T21*'Conversion Factors'!$D$23,IF(U21="metric tons",T21*'Conversion Factors'!$D$22/'Conversion Factors'!$D$20,0)))) -> 0 | X21: 0 | Z21: (Select) | AB21: =IF(Z21="lbs",Y21,IF(Z21="kg",Y21*'Conversion Factors'!$D$21,IF(Z21="tons",Y21*'Conversion Factors'!$D$23,IF(Z21="metric tons",Y21*'Conversion Factors'!$D$22/'Conversion Factors'!$D$20,0)))) -> 0 | AC21: 0 | AE21: (Select) | AG21: =IF(AE21="lbs",AD21,IF(AE21="kg",AD21*'Conversion Factors'!$D$21,IF(AE21="tons",AD21*'Conversion Factors'!$D$23,IF(AE21="metric tons",AD21*'Conversion Factors'!$D$22/'Conversion Factors'!$D$20,0)))) -> 0 | AH21: 0 | AI21: 0
A22: =Aggregate!A19 -> Row 11 | D22: =IF(C22="",B22*'Water Charges'!$B$3,C22*B22) -> 0 | F22: (Select) | H22: =IF(F22="lbs",E22,IF(F22="kg",E22*'Conversion Factors'!$D$21,IF(F22="tons",E22*'Conversion Factors'!$D$23,IF(F22="metric tons",E22*'Conversion Factors'!$D$22/'Conversion Factors'!$D$20,0)))) -> 0 | I22: =IF(G22="",H22*'Water Charges'!$D$3,H22*G22) -> 0 | K22: (Select) | M22: =IF(K22="lbs",J22,IF(K22="kg",J22*'Conversion Factors'!$D$21,IF(K22="tons",J22*'Conversion Factors'!$D$23,IF(K22="metric tons",J22*'Conversion Factors'!$D$22/'Conversion Factors'!$D$20,0)))) -> 0 | N22: =IF(L22="",M22*'Water Charges'!$C$3,M22*L22) -> 0 | P22: (Select) | R22: =IF(P22="lbs",O22,IF(P22="kg",O22*'Conversion Factors'!$D$21,IF(P22="tons",O22*'Conversion Factors'!$D$23,IF(P22="metric tons",O22*'Conversion Factors'!$D$22/'Conversion Factors'!$D$20,0)))) -> 0 | S22: =O22*Q22 -> 0 | U22: (Select) | W22: =IF(U22="lbs",T22,IF(U22="kg",T22*'Conversion Factors'!$D$21,IF(U22="tons",T22*'Conversion Factors'!$D$23,IF(U22="metric tons",T22*'Conversion Factors'!$D$22/'Conversion Factors'!$D$20,0)))) -> 0 | X22: =T22*V22 -> 0 | Z22: (Select) | AB22: =IF(Z22="lbs",Y22,IF(Z22="kg",Y22*'Conversion Factors'!$D$21,IF(Z22="tons",Y22*'Conversion Factors'!$D$23,IF(Z22="metric tons",Y22*'Conversion Factors'!$D$22/'Conversion Factors'!$D$20,0)))) -> 0 | AC22: =Y22*AA22 -> 0 | AE22: (Select) | AG22: =IF(AE22="lbs",AD22,IF(AE22="kg",AD22*'Conversion Factors'!$D$21,IF(AE22="tons",AD22*'Conversion Factors'!$D$23,IF(AE22="metric tons",AD22*'Conversion Factors'!$D$22/'Conversion Factors'!$D$20,0)))) -> 0 | AH22: =AD22*AF22 -> 0 | AI22: 0
A24: Color Key | I24: lbs | N24: lbs
A25: Enter value | I25: kg | N25: kg
A26: Use drop-down menu | I26: tons | N26: tons
A27: Do not change - calculation | I27: metric tons
A29: Sources
A30: BOD/COD | B30: AWWA 2019 Rate Survey. Exhibit 6. | C30: National Average is used.
A31: TOTAL SUSPENDED SOLIDS (TSS) | B31: AWWA 2019 Rate Survey. Exhibit 6. | C31: National Average is used.
A32: FATS, OILS, AND GREASE (FOG) | B32: NA | C32: Cost values not currently available.
A33: TOXICS | B33: NA | C33: Cost values not currently available.
A34: NUTRIENTS | B34: NA | C34: Cost values not currently available.
A35: WASTEWATER DISCHARGE | B35: AWWA 2019 Rate Survey, Exhibits 5. | C35: Data presented for Commercial Light Industrial Category with 2-inch meter pipe. National Average is used.

Sheet Haz Inputs & Wastes
B1: Hazardous Inputs & Wastes
B2: This tab computes dollar savings from reducing hazardous inputs and hazardous waste.
A4: Type of Reduction | B4: Hazardous Input Reduction | F4: Hazardous Waste Reduction - Average across management methods | J4: Hazardous Waste Reduction - Landfill | N4: Hazardous Waste Reduction - Incineration
A5: How to use this tab | B5: Enter the quantity and unit of hazardous input reduced, and a unit cost. Savings appear on the right. | F5: Work here if you don't know where the hazardous waste would have been managed (i.e., landfilled or incinerated). Enter the quantity reduced and a unit. Enter the unit cost, if known. The "Dollar Savings" column shows savings based on the unit cost entered, or on an average of the default unit cost of landfill and incineration. | J5: Enter the quantity and unit of hazardous waste that would have been landfilled. Enter the unit cost, if known. The "Dollar Savings" column shows savings based on your unit cost or the national default unit cost. | N5: Enter the quantity and unit of hazardous waste that would have been incinerated. Enter the unit cost, if known. The "Dollar Savings" column shows savings based on your unit cost or the national default unit cost.
A6: Calculation Description | B6: Quantity of hazardous input reduced (in user-specified units) * user-specified unit cost = Dollars saved | F6: Quantity of hazardous waste no longer disposed (in user-specified unit) * default unit cost = Dollars saved | J6: Quantity of hazardous waste no longer landfilled (in user-specified units) * unit cost (user-specified or default) = Dollars saved. | N6: Quantity of hazardous waste no longer incinerated (in user-specified units) * unit cost (user-specified or default) = Dollars saved.
A7: Default Unit Cost ($) | F7: 2.09 | G7: /lbs | J7: 1.57 | K7: /lbs | N7: 2.57 | O7: /lbs
F8: 17.35 | G8: /gal | J8: 13.03 | K8: /gal | N8: 21.33 | O8: /gal
B9: Reduced Quantity of Haz. Inputs | C9: Unit (select) | D9: Unit Cost ($/unit selected) | E9: Dollar Savings | F9: Reduced Quantity of Waste | G9: Unit (select) | H9: Unit Cost ($/unit selected) | I9: Dollar Savings | J9: Reduced Quantity of Waste | K9: Unit (select) | L9: Unit Cost ($/unit selected) | M9: Dollar Savings | N9: Reduced Quantity of Waste | O9: Unit (select) | P9: Unit Cost ($/unit selected) | Q9: Dollar Savings
A10: Example | B10: A cutlery manufacturer replaced trichloroethylene (TCE) for cleaning with aqueous wash boxes and an alcohol-based vapor degreaser. | F10: New process reduces 55-gallon waste drums annually from 100 to 20.
B11: 110000 | C11: lbs | D11: 2.25 | E11: 247500 | F11: 4400 | G11: gal | I11: =IF(G11="lbs",F11*$F$7,IF(G11="gal",F11*$F$8,0)) -> 76340
A12: Totals - All Rows | B12: =SUMIF(C$14:C$24,"gal",B$14:B$24)&" gal"&"; "&SUMIF(C$14:C$24,"lbs",B$14:B$24)&" lbs" -> 0 gal; 0 lbs | E12: =SUM(E14:E24) -> 0 | F12: =SUMIF(G$14:G$24,"gal",F$14:F$24)&" gal"&"; "&SUMIF(G$14:G$24,"lbs",F$14:F$24)&" lbs" -> 0 gal; 0 lbs | I12: =SUM(I14:I24) -> 0 | J12: =SUMIF(K$14:K$24,"gal",J$14:J$24)&" gal"&"; "&SUMIF(K$14:K$24,"lbs",J$14:J$24)&" lbs" -> 0 gal; 0 lbs | M12: =SUM(M14:M24) -> 0 | N12: =SUMIF(O$14:O$24,"gal",N$14:N$24)&" gal"&"; "&SUMIF(O$14:O$24,"lbs",N$14:N$24)&" lbs" -> 0 gal; 0 lbs | Q12: =SUM(Q14:Q24) -> 0
A14: =Aggregate!A9 -> Row 1 | C14: (Select) | E14: =B14*D14 -> 0 | G14: (Select) | I14: =IF(AND(H14="",G14="lbs"),F14*$F$7,IF(AND(H14="",G14="gal"),F14*$F$8,F14*H14)) -> 0 | K14: (Select) | M14: =IF(AND(L14="",K14="lbs"),J14*$J$7,IF(AND(L14="",K14="gal"),J14*$J$8,J14*L14)) -> 0 | O14: (Select) | Q14: =IF(AND(P14="",O14="lbs"),N14*$N$7,IF(AND(P14="",O14="gal"),N14*$N$8,N14*P14)) -> 0
A15: =Aggregate!A10 -> Row 2 | C15: (Select) | E15: =B15*D15 -> 0 | G15: (Select) | I15: =IF(AND(H15="",G15="lbs"),F15*$F$7,IF(AND(H15="",G15="gal"),F15*$F$8,F15*H15)) -> 0 | K15: (Select) | M15: =IF(AND(L15="",K15="lbs"),J15*$J$7,IF(AND(L15="",K15="gal"),J15*$J$8,J15*L15)) -> 0 | O15: (Select) | Q15: =IF(AND(P15="",O15="lbs"),N15*$N$7,IF(AND(P15="",O15="gal"),N15*$N$8,N15*P15)) -> 0
A16: =Aggregate!A11 -> Row 3 | C16: (Select) | E16: 0 | G16: (Select) | I16: 0 | K16: (Select) | M16: 0 | O16: (Select) | Q16: 0
A17: =Aggregate!A12 -> Row 4 | C17: (Select) | E17: 0 | G17: (Select) | I17: 0 | K17: (Select) | M17: 0 | O17: (Select) | Q17: 0
A18: =Aggregate!A13 -> Row 5 | C18: (Select) | E18: 0 | G18: (Select) | I18: 0 | K18: (Select) | M18: 0 | O18: (Select) | Q18: 0
A19: =Aggregate!A14 -> Row 6 | C19: (Select) | E19: 0 | G19: (Select) | I19: 0 | K19: (Select) | M19: 0 | O19: (Select) | Q19: 0
A20: =Aggregate!A15 -> Row 7 | C20: (Select) | E20: 0 | G20: (Select) | I20: 0 | K20: (Select) | M20: 0 | O20: (Select) | Q20: 0
A21: =Aggregate!A16 -> Row 8 | C21: (Select) | E21: 0 | G21: (Select) | I21: 0 | K21: (Select) | M21: 0 | O21: (Select) | Q21: 0
A22: =Aggregate!A17 -> Row 9 | C22: (Select) | E22: 0 | G22: (Select) | I22: 0 | K22: (Select) | M22: 0 | O22: (Select) | Q22: 0
A23: =Aggregate!A18 -> Row 10 | C23: (Select) | E23: 0 | G23: (Select) | I23: 0 | K23: (Select) | M23: 0 | O23: (Select) | Q23: 0
A24: =Aggregate!A19 -> Row 11 | C24: (Select) | E24: =B24*D24 -> 0 | G24: (Select) | I24: =IF(AND(H24="",G24="lbs"),F24*$F$7,IF(AND(H24="",G24="gal"),F24*$F$8,F24*H24)) -> 0 | K24: (Select) | M24: =IF(AND(L24="",K24="lbs"),J24*$J$7,IF(AND(L24="",K24="gal"),J24*$J$8,J24*L24)) -> 0 | O24: (Select) | Q24: =IF(AND(P24="",O24="lbs"),N24*$N$7,IF(AND(P24="",O24="gal"),N24*$N$8,N24*P24)) -> 0
A26: Color Key
A27: Enter value
A28: Use drop-down menu
A29: Do not change - calculation
A31: Sources
A32: HAZARDOUS INPUT REDUCTION | B32: Will vary - user provides source.
A33: HAZARDOUS INPUT SUBSTITUTION | B33: Will vary - user provides source.
A34: HAZARDOUS WASTE REDUCTION- AVERAGE | B34: 1) EPA, Unit Cost Compendium (UCC), 2011. 2) 2017 RCRA Biennial Report 3) Regulatory Impact Analysis (RIA) for USEPA’s 2008 Final Rule Amendments to the Industrial Recycling Exclusions of the RCRA Definition of Solid Waste (Sep 25, 2008) 4) Dept. of Defense Environmental Cost Analysis Methodology (ECAM) Handbook (Mar 29, 1999). See the "References & Justification" tab for more information.
A35: HAZARDOUS WASTE REDUCTION-LANDFILL | B35: 1) EPA, Unit Cost Compendium (UCC), 2011. 2) 2017 RCRA Biennial Report 3) Regulatory Impact Analysis (RIA) for USEPA’s 2008 Final Rule Amendments to the Industrial Recycling Exclusions of the RCRA Definition of Solid Waste (Sep 25, 2008) 4) Dept. of Defense Environmental Cost Analysis Methodology (ECAM) Handbook (Mar 29, 1999). See the "References & Justification" tab for more information.
A36: HAZARDOUS WASTE REDUCTION- INCINERATION | B36: 1) EPA, Unit Cost Compendium (UCC), 2011. 2) 2017 RCRA Biennial Report 3) Regulatory Impact Analysis (RIA) for USEPA’s 2008 Final Rule Amendments to the Industrial Recycling Exclusions of the RCRA Definition of Solid Waste (Sep 25, 2008) 4) Dept. of Defense Environmental Cost Analysis Methodology (ECAM) Handbook (Mar 29, 1999). See the "References & Justification" tab for more information.

Sheet Air Emissions
B1: Air Emissions
B2: This tab computes cost savings for permitted facilities that reduce onsite air emissions. The columns for Criteria Pollutants and HAPs use state emission-tonnage fees to show cost savings from reducing emissions. The Other Permitting Fees column has fields to enter avoided permit maintenance or renewal fees when a facility so lowers its emissions that it can get a cheaper permit or skip permitting entirely.
A4: Type of Reduction | C4: Hazardous Air Pollutants (HAPs) | E4: Clean Air Act Title V Criteria Air Pollutants (including Nitrogen Oxides (NOX), Sulfur Oxides (SOX), Particulate Matter of 10 micrometers or less (PM10), Volatile Organic Compounds (VOCs)) | G4: Other Permitting Fees
A5: How to use this tab | C5: Select a State or US National default for where emissions were abated. Enter the quantity and unit of HAPs reduced. Savings will be on the right. | E5: Select a state or national default for where emissions were abated. Enter the quantity and unit of air pollutants reduced. Savings will be on the right. | G5: If air emissions reductions have eliminated or reduced the costs for permit renewal or maintenance, enter the value for fees saved. | H5: VLOOKUP Category
A6: Calculation Description | C6: Quantity of reduced HAPs (tons) * state or national unit cost ($/tons) = Dollars saved. | E6: Quantity of reduced Criteria Air Pollutants (tons) * state or national unit cost ($/tons) = Dollars saved. | H6: CAPs | L6: HAPs
B7: State or U.S. (select) | C7: Quantity HAPs Reduced (tons) | D7: Dollar Savings | E7: Reduced Quantity of Criteria Pollutants Reduced (tons) | F7: Dollar Savings | G7: Dollar Savings
A8: Example | C8: A cutlery manufacturer replaced trichloroethylene (TCE) for cleaning with aqueous wash boxes and an alcohol-based vapor degreaser. Over three years, TCE air emissions fell from 110,000 pounds (55 tons) to zero. | E8: A furniture manufacturer in New Hampshire switched to lower VOC paints.
B9: NH | C9: 55 | D9: =IF($O9="",0,VLOOKUP($O9,sthaps,4,FALSE)*$C9) -> 8985.9 | E9: 1 | F9: =IF($K9="",0,VLOOKUP($K9,stcaps,4,FALSE)*$E9) -> 163.38 | H9: =IF(VLOOKUP($B9,stairemiss,3,FALSE)<>3,"",IF(VLOOKUP($B9,blockstates,2,FALSE)<>1,"",IF($E9<VLOOKUP($B9,blockstates,3,FALSE),$B9&"_<"&VLOOKUP($B9,blockstates,3,FALSE),$B9&"_>="&VLOOKUP($B9,blockstates,3,FALSE)))) ->  | I9: =IF(VLOOKUP($B9,stairemiss,3,FALSE)<>3,"",IF(VLOOKUP($B9,blockstates,2,FALSE)<>2,"",IF($E9<VLOOKUP($B9,blockstates,3,FALSE),$B9&"_<"&VLOOKUP($B9,blockstates,3,FALSE),IF($E9<VLOOKUP($B9,blockstates,4,FALSE),$B9&"_"&VLOOKUP($B9,blockstates,3,FALSE)&"-"&VLOOKUP($B9,blockstates,4,FALSE),$B9&"_>="&VLOOKUP($B9,blockstates,4,FALSE))))) ->  | J9: =IF(VLOOKUP($B9,stairemiss,3,FALSE)<>3,"",IF(VLOOKUP($B9,blockstates,2,FALSE)<>3,"",IF($E9<VLOOKUP($B9,blockstates,3,FALSE),$B9&"_<"&VLOOKUP($B9,blockstates,3,FALSE),IF($E9<VLOOKUP($B9,blockstates,4,FALSE),$B9&"_"&VLOOKUP($B9,blockstates,3,FALSE)&"-"&VLOOKUP($B9,blockstates,4,FALSE),IF($E9<VLOOKUP($B9,blockstates,5,FALSE),$B9&"_"&VLOOKUP($B9,blockstates,4,FALSE)&"-"&VLOOKUP($B9,blockstates,5,FALSE),$B9&"_>="&VLOOKUP($B9,blockstates,5,FALSE)))))) ->  | K9: =IF(B9="(Select)","",IF(VLOOKUP($B9,stairemiss,3,FALSE)=1,$B9,IF(VLOOKUP($B9,stairemiss,3,FALSE)=2,"National",IF($H9<>"",$H9,IF($I9<>"",$I9,$J9))))) -> NH | L9: =IF(VLOOKUP($B9,stairemiss,8,FALSE)<>3,"",IF(VLOOKUP($B9,blockstates_haps,2,FALSE)<>1,"",IF($C9<VLOOKUP($B9,blockstates_haps,3,FALSE),$B9&"_<"&VLOOKUP($B9,blockstates_haps,3,FALSE),$B9&"_>="&VLOOKUP($B9,blockstates_haps,3,FALSE)))) ->  | M9: =IF(VLOOKUP($B9,stairemiss,8,FALSE)<>3,"",IF(VLOOKUP($B9,blockstates_haps,2,FALSE)<>2,"",IF($C9<VLOOKUP($B9,blockstates_haps,3,FALSE),$B9&"_<"&VLOOKUP($B9,blockstates_haps,3,FALSE),IF($C9<VLOOKUP($B9,blockstates_haps,4,FALSE),$B9&"_"&VLOOKUP($B9,blockstates_haps,3,FALSE)&"-"&VLOOKUP($B9,blockstates_haps,4,FALSE),$B9&"_>="&VLOOKUP($B9,blockstates_haps,4,FALSE))))) ->  | N9: =IF(VLOOKUP($B9,stairemiss,8,FALSE)<>3,"",IF(VLOOKUP($B9,blockstates_haps,2,FALSE)<>3,"",IF($C9<VLOOKUP($B9,blockstates_haps,3,FALSE),$B9&"_<"&VLOOKUP($B9,blockstates_haps,3,FALSE),IF($C9<VLOOKUP($B9,blockstates_haps,4,FALSE),$B9&"_"&VLOOKUP($B9,blockstates_haps,3,FALSE)&"-"&VLOOKUP($B9,blockstates_haps,4,FALSE),IF($C9<VLOOKUP($B9,blockstates_haps,5,FALSE),$B9&"_"&VLOOKUP($B9,blockstates_haps,4,FALSE)&"-"&VLOOKUP($B9,blockstates_haps,5,FALSE),$B9&"_>="&VLOOKUP($B9,blockstates_haps,5,FALSE)))))) ->  | O9: =IF(B9="(Select)","",IF(VLOOKUP($B9,stairemiss,3,FALSE)=1,$B9,IF(VLOOKUP($B9,stairemiss,3,FALSE)=2,"National",IF($L9<>"",$L9,IF($M9<>"",$M9,$N9))))) -> NH
A11: Totals - All Rows | D11: =SUM(D13:D23) -> 0 | F11: =SUM(F13:F23) -> 0
A13: =Aggregate!A9 -> Row 1 | B13: (Select) | D13: =IF($O13="",0,VLOOKUP($O13,sthaps,4,FALSE)*$C13) -> 0 | F13: =IF($K13="",0,VLOOKUP($K13,stcaps,4,FALSE)*$E13) -> 0 | H13: =IF(VLOOKUP($B13,stairemiss,3,FALSE)<>3,"",IF(VLOOKUP($B13,blockstates,2,FALSE)<>1,"",IF($E13<VLOOKUP($B13,blockstates,3,FALSE),$B13&"_<"&VLOOKUP($B13,blockstates,3,FALSE),$B13&"_>="&VLOOKUP($B13,blockstates,3,FALSE)))) ->  | I13: =IF(VLOOKUP($B13,stairemiss,3,FALSE)<>3,"",IF(VLOOKUP($B13,blockstates,2,FALSE)<>2,"",IF($E13<VLOOKUP($B13,blockstates,3,FALSE),$B13&"_<"&VLOOKUP($B13,blockstates,3,FALSE),IF($E13<VLOOKUP($B13,blockstates,4,FALSE),$B13&"_"&VLOOKUP($B13,blockstates,3,FALSE)&"-"&VLOOKUP($B13,blockstates,4,FALSE),$B13&"_>="&VLOOKUP($B13,blockstates,4,FALSE))))) ->  | J13: =IF(VLOOKUP($B13,stairemiss,3,FALSE)<>3,"",IF(VLOOKUP($B13,blockstates,2,FALSE)<>3,"",IF($E13<VLOOKUP($B13,blockstates,3,FALSE),$B13&"_<"&VLOOKUP($B13,blockstates,3,FALSE),IF($E13<VLOOKUP($B13,blockstates,4,FALSE),$B13&"_"&VLOOKUP($B13,blockstates,3,FALSE)&"-"&VLOOKUP($B13,blockstates,4,FALSE),IF($E13<VLOOKUP($B13,blockstates,5,FALSE),$B13&"_"&VLOOKUP($B13,blockstates,4,FALSE)&"-"&VLOOKUP($B13,blockstates,5,FALSE),$B13&"_>="&VLOOKUP($B13,blockstates,5,FALSE)))))) ->  | K13: =IF(B13="(Select)","",IF(VLOOKUP($B13,stairemiss,3,FALSE)=1,$B13,IF(VLOOKUP($B13,stairemiss,3,FALSE)=2,"National",IF($H13<>"",$H13,IF($I13<>"",$I13,$J13))))) ->  | L13: =IF(VLOOKUP($B13,stairemiss,8,FALSE)<>3,"",IF(VLOOKUP($B13,blockstates_haps,2,FALSE)<>1,"",IF($C13<VLOOKUP($B13,blockstates_haps,3,FALSE),$B13&"_<"&VLOOKUP($B13,blockstates_haps,3,FALSE),$B13&"_>="&VLOOKUP($B13,blockstates_haps,3,FALSE)))) ->  | M13: =IF(VLOOKUP($B13,stairemiss,8,FALSE)<>3,"",IF(VLOOKUP($B13,blockstates_haps,2,FALSE)<>2,"",IF($C13<VLOOKUP($B13,blockstates_haps,3,FALSE),$B13&"_<"&VLOOKUP($B13,blockstates_haps,3,FALSE),IF($C13<VLOOKUP($B13,blockstates_haps,4,FALSE),$B13&"_"&VLOOKUP($B13,blockstates_haps,3,FALSE)&"-"&VLOOKUP($B13,blockstates_haps,4,FALSE),$B13&"_>="&VLOOKUP($B13,blockstates_haps,4,FALSE))))) ->  | N13: =IF(VLOOKUP($B13,stairemiss,8,FALSE)<>3,"",IF(VLOOKUP($B13,blockstates_haps,2,FALSE)<>3,"",IF($C13<VLOOKUP($B13,blockstates_haps,3,FALSE),$B13&"_<"&VLOOKUP($B13,blockstates_haps,3,FALSE),IF($C13<VLOOKUP($B13,blockstates_haps,4,FALSE),$B13&"_"&VLOOKUP($B13,blockstates_haps,3,FALSE)&"-"&VLOOKUP($B13,blockstates_haps,4,FALSE),IF($C13<VLOOKUP($B13,blockstates_haps,5,FALSE),$B13&"_"&VLOOKUP($B13,blockstates_haps,4,FALSE)&"-"&VLOOKUP($B13,blockstates_haps,5,FALSE),$B13&"_>="&VLOOKUP($B13,blockstates_haps,5,FALSE)))))) ->  | O13: =IF(B13="(Select)","",IF(VLOOKUP($B13,stairemiss,3,FALSE)=1,$B13,IF(VLOOKUP($B13,stairemiss,3,FALSE)=2,"National",IF($L13<>"",$L13,IF($M13<>"",$M13,$N13))))) -> 
A14: =Aggregate!A10 -> Row 2 | B14: (Select) | D14: 0 | F14: 0 | K14: =IF(B14="(Select)","",IF(VLOOKUP($B14,stairemiss,3,FALSE)=1,$B14,IF(VLOOKUP($B14,stairemiss,3,FALSE)=2,"National",IF($H14<>"",$H14,IF($I14<>"",$I14,$J14))))) ->  | O14: =IF(B14="(Select)","",IF(VLOOKUP($B14,stairemiss,3,FALSE)=1,$B14,IF(VLOOKUP($B14,stairemiss,3,FALSE)=2,"National",IF($L14<>"",$L14,IF($M14<>"",$M14,$N14))))) -> 
A15: =Aggregate!A11 -> Row 3 | B15: (Select) | D15: 0 | F15: 0
A16: =Aggregate!A12 -> Row 4 | B16: (Select) | D16: 0 | F16: 0
A17: =Aggregate!A13 -> Row 5 | B17: (Select) | D17: 0 | F17: 0
A18: =Aggregate!A14 -> Row 6 | B18: (Select) | D18: 0 | F18: 0
A19: =Aggregate!A15 -> Row 7 | B19: (Select) | D19: 0 | F19: 0
A20: =Aggregate!A16 -> Row 8 | B20: (Select) | D20: 0 | F20: 0
A21: =Aggregate!A17 -> Row 9 | B21: (Select) | D21: 0 | F21: 0
A22: =Aggregate!A18 -> Row 10 | B22: (Select) | D22: 0 | F22: 0
A23: =Aggregate!A19 -> Row 11 | B23: (Select) | D23: 0 | F23: 0 | K23: =IF(B23="(Select)","",IF(VLOOKUP($B23,stairemiss,3,FALSE)=1,$B23,IF(VLOOKUP($B23,stairemiss,3,FALSE)=2,"National",IF($H23<>"",$H23,IF($I23<>"",$I23,$J23))))) ->  | O23: =IF(B23="(Select)","",IF(VLOOKUP($B23,stairemiss,3,FALSE)=1,$B23,IF(VLOOKUP($B23,stairemiss,3,FALSE)=2,"National",IF($L23<>"",$L23,IF($M23<>"",$M23,$N23))))) -> 
A25: Color Key
A26: Enter value
A27: Use drop-down menu
A28: Do not change - calculation
A30: Sources
A31: AIR EMISSIONS | B31: 2008-2010 State Data | C31: Data for the following 5 states was not available for this survey: Louisiana, Massachusetts, Rhode Island, South Dakota, Utah. Delaware reportedly determines rates on a case-by-case basis. Where state data was not available, the national average was used. It should also be noted that the majority of Nevada's fee revenue comes from "maintenance fees" as opposed to "emissions fees," unlike most states; for example, a Major Source with a Title V permit pays the $16.00/ton plus a $20,000 base fee.
B85: U.S. National
B86: AK
B87: AL
B88: AR
B89: AZ
B90: CA
B91: CO
B92: CT
B93: DC
B94: DE
B95: FL
B96: GA
B97: HI
B98: IA
B99: ID
B100: IL
B101: IN
B102: KS
B103: KY
B104: LA
B105: MA
B106: MD
B107: ME
B108: MI
B109: MN
B110: MO
B111: MS
B112: MT
B113: NC
B114: ND
B115: NE
B116: NH
B117: NJ
B118: NM
B119: NV
B120: NY
B121: OH
B122: OK
B123: OR
B124: PA
B125: RI
B126: SC
B127: SD
B128: TN
B129: TX
B130: UT
B131: VA
B132: VT
B133: WA
B134: WI
B135: WV
B136: WY

Sheet Non-Haz Inputs
B1: Non-Hazardous Inputs
B2: This tab computes cost savings from reducing non-hazardous inputs.
A4: Type of Reduction | B4: Reducing Non-Hazardous Inputs
A5: How to use this tab | B5: Enter the quantity and unit of input reduced, and enter the unit cost. Savings appear on the right.
A6: Calculation Description | B6: Quantity of input reduced * Unit Cost (user specified value) = Dollars saved.
A7: Default Unit Cost
B9: Reduced Inputs Quantity | C9: Unit (select) | D9: Unit Cost ($/unit selected) | E9: Dollar Savings
A10: Totals - All Rows | B10: =SUMIF(C12:C22,"lbs",B12:B22)&" lbs"&"; "&SUMIF(C12:C22,"gal",B12:B22)&" gal"&"; "&SUMIF(C12:C22,"tons",B12:B22)&" tons"&"; "&SUMIF(C12:C22,"kg",B12:B22)&" kg" -> 0 lbs; 0 gal; 0 tons; 0 kg | E10: =SUM(E12:E22) -> 0
A12: =Aggregate!A9 -> Row 1 | C12: (Select) | E12: =B12*D12 -> 0
A13: =Aggregate!A10 -> Row 2 | C13: (Select) | E13: =B13*D13 -> 0
A14: =Aggregate!A11 -> Row 3 | C14: (Select) | E14: 0
A15: =Aggregate!A12 -> Row 4 | C15: (Select) | E15: 0
A16: =Aggregate!A13 -> Row 5 | C16: (Select) | E16: 0
A17: =Aggregate!A14 -> Row 6 | C17: (Select) | E17: 0
A18: =Aggregate!A15 -> Row 7 | C18: (Select) | E18: 0
A19: =Aggregate!A16 -> Row 8 | C19: (Select) | E19: 0
A20: =Aggregate!A17 -> Row 9 | C20: (Select) | E20: 0
A21: =Aggregate!A18 -> Row 10 | C21: (Select) | E21: 0
A22: =Aggregate!A19 -> Row 11 | C22: (Select) | E22: =B22*D22 -> 0
A24: Color Key
A25: Enter value
A26: Use drop-down menu
A27: Do not change - calculation
A29: Sources
A30: NON-HAZARDOUS INPUT REDUCTION | B30: Will vary - user provides
A31: SOLID WASTE | B31: Waste Business Journal, 2019.

Sheet Glossary
A1: Glossary
A2: Fuel
A3: Any material that is combusted for energy, such as: natural gas, gasoline or diesel, other fuels (heating oil, jet fuel etc.). Electricity has its own tab to account for offsetting the higher prices often associated with purchasing electricity from a green source.
A4: Water Use
A5: Reductions of incoming water from outside sources through the implementation of a P2 activity. Reductions can occur through operations, facility use and grounds maintenance.
A6: Water Pollution
A7: Wastewater Discharges refers to wastewater sent off site to a wastewater treatment plant, sometimes called publicly owned treatment plants. The first cost formula is for the basic fee charged by a treatment plant for treating waste water on a per gallon basis. Currently, the cost for toxics and nutrients in water discharges is not known, therefore costs can only be calculated when the user enters a cost value.
A8: Hazardous Inputs and Wastes
A9: Hazardous inputs are hazardous materials used as process inputs (chemical ingredients, paints, and solvents) and hazardous products applied to land (such as pesticides and nutrients applied, etc.).
A10: Hazardous wastes are those listed at the state and/or federal level as hazardous or toxic or meeting the criteria for ignitability, toxicity, corrosiveness or reactivity) Excluded: Non-hazardous waste (solid waste, construction debris, packaging, paper, glass and aluminum cans)
A11: Air Emissions
A12: Air Emissions are defined to include the release of any of the following: Nitrogen Oxides (NOX), Sulfur Oxides (SOX), Particulate Matter of 10 micrometers or less (PM10), Volatile Organic Compounds (VOCs), and hazardous air pollutants (HAP). Please note that this covers pollutants to air, including SOx and NOx from boilers but excludes SOx or NOx from utilities (due to cap and trade limitations). The cost for CO2 emissions are not yet assessed or available.
A13: Non-Hazardous Inputs
A14: Process input supplies and feedstocks that are not toxic or hazardous. Examples include packaging, building materials, aqueous cleaners, etc. Non-hazardous material input reductions will be unique to each project. Therefore, the user must input the reduction quantity as well as the total cost associated with the reduction. This information will also be included in the Aggregate Tab.

Sheet Conversion Factors
A1: Conversion Factors
A2: Abbreviation | E2: Meaning
B3: kwh | E3: Kilowatt hour
B4: BTU | E4: British thermal unit
B5: MBTU | E5: Thousand BTU
B6: MMBTU | E6: Million BTU
B7: tons | E7: U.S. short tons
B8: kg | E8: Kilogram
B9: lbs | E9: Pounds
B10: gal | E10: Gallon(s)
A12: Prefixes | D12: Factor
B13: Kilo | C13: = | D13: 1000
B14: Mega | C14: = | D14: 1000000
B15: Giga | C15: = | D15: 1000000000
B16: Tera | C16: = | D16: 1000000000000
A18: Useful Conversions
A19: 1 | B19: mile | C19: = | D19: 1.609 | E19: kilometers
A20: 1 | B20: lbs | C20: = | D20: 0.454 | E20: kg | F20: = | G20: =1/D23 -> 0.0005 | H20: ton
A21: 1 | B21: kg | C21: = | D21: 2.205 | E21: lbs. | F21: = | G21: =D21/D23 -> 0.0011025 | H21: ton
A22: 1 | B22: metric ton | C22: = | D22: 1000 | E22: kg | F22: = | G22: =G21*D22 -> 1.1025 | H22: ton
A23: 1 | B23: U.S. short ton | C23: = | D23: 2000 | E23: lbs. | F23: = | G23: 1 | H23: ton
A25: 1 | B25: liter | C25: = | D25: 0.2642 | E25: gallons
A26: 1 | B26: gallon | C26: = | D26: 3.7854 | E26: liters
A27: 1 | B27: barrel petroleum | C27: = | D27: 42 | E27: gallons
A29: 1 | B29: kWh | C29: = | D29: 3412 | E29: BTU | F29: = | G29: 1 | H29: kwh
A30: 1 | B30: Gj | C30: = | D30: =10^9/1055 -> 947867.2986 | E30: BTU | F30: = | G30: =D30/3412 -> 277.8040148 | H30: kwh
A31: 1 | B31: therms | C31: = | D31: =10^5 -> 100000 | E31: BTU | F31: = | G31: =D31/3412 -> 29.30832356 | H31: kwh
A32: 1 | B32: BTU | C32: = | D32: 1 | E32: BTU | F32: = | G32: =1/3412 -> 0.0002930832356 | H32: kwh
A33: 1 | B33: cubic feet | C33: = | D33: 1027 | E33: BTU
A34: 1 | B34: CCF | C34: = | D34: =1027*100 -> 102700 | E34: BTU

Sheet References & Justification
B1: References & Justification
B2: EPA’s P2 Program has worked closely across EPA offices and collected data from inside and outside the Agency in substantiating conversion factors/values and securing primary and supporting documentation to justify selected methodologies. In many situations, clear standardized conversions did not exist, so the Program chose from various options and underlying assumptions. Column E entitled, “Justification” provides the user with background on the data source and the reason it was selected. Complete citations as well as links to the most current websites are provided.
A6: Tab | B6: Reference | C6: Website | D6: Last Updated / Next Update | E6: Justification
A7: Electricity | B7: Electricity Conservation Energy Information Administration, 2020. Electric Power Monthly, "Table 5.6.B. Average Retail Price of Electricity to Ultimate Customers by End-Use Sector, by State, Year-to-Date through May 2020 and 2019." | C7: http://www.eia.gov/electricity/monthly/ | D7: May 2020 / monthly | E7: Electricity Conservation- Used commercial end-user rates by state and national average. The national average is $0.1017 per kilowatt hour.
B8: Purchased Green Electricity National Renewable Energy Laboratory (NREL), 2020. | C8: https://www.nrel.gov/analysis/assets/docs/utility-green-pricing-program-list.xlsx | D8: 2020 / unknown | E8: Purchasing Green Electricity- The national average price premium is 1.86 cents per kilowatt-hour.
A9: Fuel Use* | B9: Natural Gas Energy Information Administration (EIA), 2020. Monthly Energy Review - 2020. "Table 3: Selected national average natural gas prices, 2015-2020." | C9: http://www.eia.gov/naturalgas/monthly/pdf/table_03.pdf | D9: July 2020 / monthly | E9: Natural Gas - The 2020 YTD average price per therm value is the price per thousand cubic feet ($7.28) divided by 10.37 therms/thousand cubic feet to get the cost per therm of $0.702.
B10: VMT Internal Revenue Service, 2019. IR-2019-215. | C10: https://www.irs.gov/newsroom/irs-issues-standard-mileage-rates-for-2020 | D10: 2019 / annually | E10: VMT - The business mileage rate for 2020 is $0.575 per mile.
B11: Motor Gasoline Energy Information Administration (EIA), 2020. Gasoline and Diesel Fuel Update. Updated October, 2020. | C11: https://www.eia.gov/dnav/pet/pet_pri_gnd_dcus_nus_a.htm | D11: October 2020 / weekly | E11: Motor Gasoline- In 2019, the average national price of gasoline was $2.691 per gallon.
B12: Diesel Energy Information Administration (EIA), 2020. Gasoline and Diesel Fuel Update. Updated October, 2020. | C12: https://www.eia.gov/dnav/pet/pet_pri_gnd_dcus_nus_a.htm | D12: October 2020 / weekly | E12: Diesel- In 2019, the average national price of diesel was $3.056 per gallon.
B13: Biodiesel U.S. Department of Energy, Energy Efficiency and Renewable Energy (EERE), 2020. Clean Cities Alternative Fuel Price Report, Table 2: "National Average Retail Fuel Prices." April 2020. | C13: https://afdc.energy.gov/files/u/publication/alternative_fuel_price_report_april_2020.pdf | D13: April 2020 / quarterly | E13: Biodiesel- The April 2020 national average biodiesel price was $2.36 per gallon for B20 biodiesel and $3.51 per gallon for B99-B100 biodiesel. The overall national average biodiesel price is $2.94 per gallon.
B14: Heating Oil Energy Information Administration (EIA), 2020. Weekly Heating Oil and Propane Prices (October - March). 2020. | C14: http://www.eia.gov/dnav/pet/pet_pri_wfr_dcus_nus_w.htm | D14: April 2020 / weekly October - March | E14: Heating Oil- In the week of March 30th, 2020, the average national price of residential heating oil was reported as $2.421 per gallon.
B15: Jet Fuel US Department of Transportation, Bureau of Transportation Statistics, 2020. "Airline Fuel Cost and Consumption (U.S. Carriers - Scheduled)." Updated June, 2020. | C15: http://www.transtats.bts.gov/fuel.asp | D15: June 2020 / monthly | E15: Jet Fuel - The June 2020 figure is $1.08 per gallon.
B16: Coal Energy Information Administration (EIA), 2020. "Annual Coal Report" | C16: http://www.eia.gov/coal/annual/ | D16: 2020 / annually | E16: Coal - The 2019 domestic price for coal used in "Other Industrial Plants" is $61.37 per ton.
B17: EIA. Glossary. 2020. | C17: http://www.eia.gov/tools/glossary/ | D17: 2020 / NA | E17: Fuel definitions from the EIA glossary are used in the 'Fuel Use' tab.
A18: Water Use | B18: AWWA 2019 Water & Wastewater Rate Survey, Exhibit 2 | C18: https://www.awwa.org/Store/2019-Water-and-Wastewater-Rate-Survey---Book/ProductDetail/75323192 | D18: 2019 / biannually | E18: AWWA 2019 Rate Survey, Exhibit 2. Data presented for Commercial Light Industrial Category with 2-inch meter pipe.
A19: Water Pollution | B19: AWWA 2019 Water & Wastewater Rate Survey, Exhibits 5 and 6. | C19: https://www.awwa.org/Store/2019-Water-and-Wastewater-Rate-Survey---Book/ProductDetail/75323192 | D19: 2019 / biannually | E19: Water Pollution, AWWA 2019 Rate Survey, Exhibit 5. Data presented for Commercial Light Industrial Category with 2-inch meter pipe. National Average is used. BOD/COD - AWWA 2019 Rate Survey, Exhibit 6. National Average is used. Toxics - N/A Nutrients - N/A TSS - AWWA 2019 Rate Survey, Exhibit 6.
A20: Hazardous Inputs | B20: User-entered data | C20: N/A | D20: N/A | E20: Hazardous material input reductions will be unique to each project. Therefore, the user must input the reduction quantity as well as the total cost associated with the reduction. This information will be included in the Aggregate.
A21: Hazardous Waste | B21: 1) EPA, Unit Cost Compendium (UCC), 2011. 2) 2017 RCRA Biennial Report 3) Regulatory Impact Analysis (RIA) for USEPA’s 2008 Final Rule Amendments to the Industrial Recycling Exclusions of the RCRA Definition of Solid Waste (Sep 25, 2008) 4) Dept. of Defense Environmental Cost Analysis Methodology (ECAM) Handbook (Mar 29, 1999). | C21: 2017 RCRA Biennial Report at: https://rcrapublic.epa.gov/rcrainfoweb/action/modules/br/summary/view Regulatory Impact Analysis (RIA) for USEPA’s 2008 Final Rule Amendments to the Industrial Recycling Exclusions of the RCRA Definition of Solid Waste; Transportation Costs on page 188: https://www.regulations.gov/document?D=EPA-HQ-RCRA-2002-0031-0602 | D21: Varies / Varies | E21: For average costs, not specifying management method (Average HW Cost tab): An average cost for unspecified management methods was estimated using a weighted average of inflated UCC incineration and landfill costs, weighted by how prevalent each treatment method is in the waste stream based on the Biennial Report. Transportation costs from the RIA document are also included. The estimated average cost including transportation is $0.77 per pound. Adding $1.32 ($1.00 inflated to 2019$) for typical overhead costs from the ECAM document yields a total cost of $2.09 per pound, or $17.35 per gallon (based on 8.3 lbs. per gallon). For Incineration alone (Incineration tab): Using an average of UCC incineration costs (inflated to 2019$) ($1.08), adding inflated transportation costs ($.07), and $1.32 ($1.00 inflated to 2019$) for overhead yields a cost for incineration of $1.08+$.07+$1.32=$2.57/lb, or $21.33/gal (based on 8.3 lbs per gallon). For Landfill alone (Landfill tab): Using a weighted average (by waste form) of ETC/UCC landfill costs (inflated to 2019$) ($.18), adding inflated transportation costs ($.07), and $1.32 ($1.00 inflated to 2016$) for overhead costs yields a cost of landfilling of $.18+$.07+$1.32=$1.57/lb, or $13.03/gal (based on 8.3 lbs per gallon).
A22: Air Emissions | B22: Internal EPA survey. | C22: N/A | D22: 2008-2010 / unknown | E22: This rate is an average of state rates (adjusted upward by 20% to account for increasing costs since survey date) from a compilation of sources provided by EPA. Sources include direct phone conversations between EPA and state Environmental Protection offices, and individual states' department website documents. Data was not available for six states, thus the national average presented is compiled from 44 states and the District of Columbia only. If this data is not reflective of current conditions, please contact EPA P2 program on alternative data and sources. For more information, see the State Air Emission tab.
A23: Non-Hazardous Inputs | B23: User-entered data | C23: N/A | D23: N/A | E23: Non-hazardous material input reductions will be unique to each project. Therefore, the user must input the reduction quantity as well as the total cost associated with the reduction. This information will be included in the Aggregate.
A24: Implicit GDP Price Deflators | B24: U.S. Bureau of Economic Analysis, “Table 1.1.9. Implicit Price Deflators for Gross Domestic Product,” (accessed August 21st, 2020). | C24: https://apps.bea.gov/iTable/iTable.cfm?reqid=19&step=2#reqid=19&step=2&isuri=1&1921=survey | D24: July 2020 / monthly | E24: BEA's Implicit GDP Price Deflator index was used to inflate costs to 2019$. The GDP index was selected as it is widely understood and broadly applicable.
A25: * All fuel data is based on national averages

Sheet State Air Emission (hidden)
B1: 1 | C1: =B1+1 -> 2 | D1: =C1+1 -> 3 | F1: =D1+1 -> 4 | H1: 1 | I1: =H1+1 -> 2 | J1: =I1+1 -> 3 | L1: =J1+1 -> 4
A2: =COLUMN() -> 1 | B2: =COLUMN() -> 2 | C2: =COLUMN() -> 3 | D2: =COLUMN() -> 4 | F2: =COLUMN() -> 6 | H2: =COLUMN() -> 8 | I2: =COLUMN() -> 9 | J2: =COLUMN() -> 10 | L2: =COLUMN() -> 12 | M2: =COLUMN() -> 13
A3: Note: data based on a U.S. EPA survey conducted from 2008-2010. All costs have been inflated by 20%, per guidance from U.S. EPA/OAQPS, Air Quality Policy Division, Operating Permits Group (November 2020).
A4: States | B4: Blocks | C4: Group | D4: NOx, SOx, PM10, VOCs | E4: NOx, SOx, PM10, VOCs (2019$/ton) | F4: Category | G4: Notes | H4: Blocks | I4: Group | J4: HAPs | K4: HAPs (2019$/ton) | L4: Category | M4: Notes | N4: Sources and Notes
A5: U.S. National | B5: U.S. National | C5: 1 | D5: 45.14 | E5: =IFERROR(D5*(1.2), D5) -> 54.168 | F5: National | H5: U.S. National | I5: 1 | J5: 45.8 | K5: =IFERROR(J5*1.2, J5) -> 54.96
A6: AK | B6: =IF(OR(F6="",F6="National"),A6,A6&"_"&F6) -> AK | C6: 1 | D6: 28.57 | E6: =IFERROR(D6*(1.2), D6) -> 34.284 | H6: =IF(OR($L6="",$L6="National"),$A6,$A6&"_"&$L6) -> AK | I6: 1 | J6: 28.57 | K6: =IFERROR(J6*1.2, J6) -> 34.284 | N6: "Air Permits Program Fee Rate Evaluation Report (February 25th, 2010)," Department of Environmental Conservation, Division of Air Quality (http://www.dec.state.ak.us/air/ap/fees.htm)
A7: AL | B7: AL | C7: 1 | D7: 32.5 | E7: =IFERROR(D7*(1.2), D7) -> 39 | H7: AL | I7: 1 | J7: 32.5 | K7: 39 | N7: Information received by Sarah Helinek via e-mail in January 2010 from Tim Owen, Chief, Energy Branch, Air Division, AL Department of Environmental Management (Airmail@adem.state.al.us)
A8: AR | B8: AR | C8: 1 | D8: 22.07 | E8: 26.484 | H8: AR | I8: 1 | J8: 22.07 | K8: 26.484 | N8: Information received by Sarah Helinek via e-mail in March 2010 from Thomas Rheaume, Permit Branch Manager, Arkansas Department of Environmental Quality, Air Division (RHEAUME@adeq.state.ar.us)
A9: AZ | B9: AZ | C9: 1 | D9: 36.96 | E9: 44.352 | H9: AZ | I9: 1 | J9: 36.96 | K9: 44.352 | N9: Information received by Sarah Helinek via e-mail in March 2010 from Trevor Baggiore, Air Quality Permits Section, Arizona Department of Environmental Quality (Baggiore.Trevor@azdeq.gov)
A10: CA | B10: CA | C10: 1 | D10: 46.64 | E10: 55.968 | H10: CA | I10: 1 | J10: 47.23 | K10: 56.676 | N10: "District Rules Database," Air Resources Board, CA Environmental Protection Agency website (http://www.arb.ca.gov/drdb/drdb.htm) (*NOTE: CA has 35 different air districts, each with unique air pollution laws and fee. Many districts did not provide Title V fee information, and of those that did, many were not up to date. Only four had sufficient/up-to-date data to report)
A11: CO | B11: CO | C11: 1 | D11: 22.9 | E11: 27.48 | H11: CO | I11: 1 | J11: 152.9 | K11: 183.48 | N11: "Air Pollution Billing and Fees Stationary Sources Program," Colorado Department of Public Health and Environment, Air Pollution Control Division (http://www.cdphe.state.co.us/ap/billing.html)
A12: CT | B12: CT | C12: 1 | D12: 229.47 | E12: 275.364 | H12: CT | I12: 1 | J12: 229.47 | K12: 275.364 | N12: Information received by Sarah Helinek via e-mail in January 2010 from Dennise Goulbourne, Fiscal Administrative Officer, Bureau of Financial & Support Services (Dennise.Goulbourne@ct.gov)
A13: DC | B13: DC | C13: 1 | D13: 43.72 | E13: 52.464 | H13: DC | I13: 1 | J13: 0 | K13: 0 | N13: Information received by Sarah Helinek via e-mail in January 2010 from Jessica Daniels, Environmental Protection Specialist, Government of the District of Columbia, District Department of the Environment (jessica.daniels@dc.gov)
A14: DE | B14: DE | C14: 2 | D14: U.S. National | E14: U.S. National | F14: National | G14: Determined on a case-by-case basis | H14: DE | I14: 2 | J14: U.S. National | K14: U.S. National | L14: National | M14: Determined on a case-by-case basis | N14: DE determines its air emissions fees on a complicated, case-by-case basis, and is therefore not included in the average (Based on e-mail from Amy Mann, DE Department of Natural Resources and Environmental Control, Amy.Mann@state.de.us)
A15: FL | B15: FL | C15: 1 | D15: 30 | E15: 36 | H15: FL | I15: 1 | J15: 30 | K15: 36 | N15: "Title V Annual Emissions Fee On-line Information Center," Maryland Department of Environmental Protection website (http://www.dep.state.fl.us/AIR/emission/tvfee.htm)
A16: GA | B16: GA | C16: 1 | D16: 34 | E16: 40.8 | H16: GA | I16: 1 | J16: 34 | K16: 40.8 | N16: "Procedures for Calculating Air Permit Fees," Georgia Department of Natural Resources website (http://www.gaepd.org/air/airpermit/html/aqrules/fee.htm)
A17: HI | B17: HI | C17: 1 | D17: 61.52 | E17: 73.824 | H17: HI | I17: 1 | J17: 0 | K17: 0 | N17: Information received by Sarah Helinek via e-mail in March 2010 from Scott Takamoto, Clean Air Branch, Hawaii Department of Health (scott.takamoto@doh.hawaii.gov)
A18: IA | B18: IA | C18: 1 | D18: 56 | E18: 67.2 | H18: IA | I18: 1 | J18: 56 | K18: 67.2 | N18: Information received by Sarah Helinek via e-mail in March 2010 from Doug Campbell, Supervisor, Operating Permits Section, Air Quality Bureau Iowa Department of Natural Resources (Doug.Campbell@dnr.iowa.gov)
A19: ID | B19: ID | C19: 1 | D19: 39.48 | E19: 47.376 | H19: ID | I19: 1 | J19: 0 | K19: 0 | N19: Information received by Sarah Helinek via e-mail in March 2010 from Stephen Coe, Regional Airshed Manager, Idaho Department Of Environmental Quality (Stephen.Coe@deq.idaho.gov)
A20: IL | B20: IL_<100 | C20: 3 | D20: 0 | E20: 0 | F20: <100 | H20: IL_<100 | I20: 3 | J20: 0 | K20: 0 | L20: <100 | M20: <100 | N20: "Clean Air Title V Fees," Illinois Environmental Protection Agency (http://www.epa.state.il.us/fees/clean-air-title-v.html)
A21: IL | B21: IL_>=100 | C21: 3 | D21: 18 | E21: 21.6 | F21: >=100 | H21: IL_>=100 | I21: 3 | J21: 18 | K21: 21.6 | L21: >=100 | M21: >=100 | N21: "Clean Air Title V Fees," Illinois Environmental Protection Agency (http://www.epa.state.il.us/fees/clean-air-title-v.html)
A22: IN | B22: IN | C22: 1 | D22: 41.25 | E22: 49.5 | H22: IN | I22: 1 | J22: 0 | K22: 0 | N22: Information received by Sarah Helinek in March 2010 via e-mail from Kristin Wiley, Correspondence Coordinator, Governor's Liaison for Indiana Department of Environmental Management (INFO@idem.in.gov)
A23: KS | B23: KS_<100 | C23: 3 | D23: 0 | E23: 0 | F23: <100 | H23: KS_<10 | I23: 3 | J23: 0 | K23: 0 | L23: <10 | M23: <10 | N23: Information received by Sarah Helinek via e-mail in March 2010 from Marian Massoth, P.E. Air Permitting Section, KDHE - Bureau of Air (MMassoth@kdheks.gov)
A24: KS | B24: KS_>=100 | C24: 3 | D24: 25 | E24: 30 | F24: >=100 | H24: KS_>=10 | I24: 3 | J24: 25 | K24: 30 | L24: >=10 | M24: >=10 | N24: Information received by Sarah Helinek via e-mail in March 2010 from Marian Massoth, P.E. Air Permitting Section, KDHE - Bureau of Air (MMassoth@kdheks.gov)
A25: KY | B25: KY | C25: 1 | D25: 48.12 | E25: 57.744 | H25: KY | I25: 1 | J25: 48.12 | K25: 57.744 | N25: "Permit Fees for Fiscal Year 2010," Kentucky Air Pollution Control District website (http://www.louisvilleky.gov/APCD/EE/Permits.htm#aCost)
A26: LA | B26: LA | C26: 2 | D26: U.S. National | E26: U.S. National | F26: National | G26: No data received | H26: LA | I26: 2 | J26: U.S. National | K26: U.S. National | L26: National | M26: No data received | N26: N/A
A27: MA | B27: MA | C27: 2 | D27: U.S. National | E27: U.S. National | F27: National | G27: No data received | H27: MA | I27: 2 | J27: U.S. National | K27: U.S. National | L27: National | M27: No data received | N27: Information N/A
A28: MD | B28: MD | C28: 1 | D28: 52.23 | E28: 62.676 | H28: MD | I28: 1 | J28: 52.23 | K28: 62.676 | N28: "Title V Fee Sheet," Maryland Department of the Environment website (http://www.mde.state.md.us/Permits/AirManagementPermits/Title5/title5feesheet.asp)
A29: ME | B29: ME_<1000 | C29: 3 | D29: 7.28 | E29: 8.736 | F29: <1000 | H29: ME_<1000 | I29: 3 | J29: 7.28 | K29: 8.736 | L29: <1000 | M29: <1000 | N29: "Major Source Information - Air Emissions License Revised Fee Schedule," Bureau of Air Quality, Maine Department of Environment (http://www.state.me.us/dep/air/licensing/major.htm)
A30: ME | B30: ME_1000-4000 | C30: 3 | D30: 14.59 | E30: 17.508 | F30: 1000-4000 | H30: ME_1000-4000 | I30: 3 | J30: 14.59 | K30: 17.508 | L30: 1000-4000 | M30: 1000-4,000 | N30: "Major Source Information - Air Emissions License Revised Fee Schedule," Bureau of Air Quality, Maine Department of Environment (http://www.state.me.us/dep/air/licensing/major.htm)
A31: ME | B31: ME_>=4000 | C31: 3 | D31: 21.86 | E31: 26.232 | F31: >=4000 | H31: ME_>=4000 | I31: 3 | J31: 21.86 | K31: 26.232 | L31: >=4000 | M31: >=4000 | N31: "Major Source Information - Air Emissions License Revised Fee Schedule," Bureau of Air Quality, Maine Department of Environment (http://www.state.me.us/dep/air/licensing/major.htm)
A32: MI | B32: MI | C32: 1 | D32: 45.25 | E32: 54.3 | H32: MI | I32: 1 | J32: 45.25 | K32: 54.3 | N32: "Michigan Air Quality Fees for 2010," MI Department of Natural Resources and Environment (http://www.michigan.gov/deq/0,1607,7-135-3310_4103_5784---,00.html) State Fee: $45.25/ton
A33: MN | B33: MN | C33: 1 | D33: 43.33 | E33: 51.996 | H33: MN | I33: 1 | J33: 43.33 | K33: 51.996 | N33: Information received by Sarah Helinek in March 2010 via e-mail from Michael Smith, Minnesota Pollution Control Agency Environmental Analysis and Outcomes, Air Emission Inventory Coordinator (Michael.Smith@state.mn.us)
A34: MO | B34: MO | C34: 1 | D34: 40 | E34: 48 | H34: MO | I34: 1 | J34: 40 | K34: 48 | N34: "The State of Missouri's Environment, 2009," Missouri Department of Natural Resources (http://www.dnr.mo.gov/env/apcp/index.html)
A35: MS | B35: MS | C35: 1 | D35: 36 | E35: 43.2 | H35: MS | I35: 1 | J35: 36 | K35: 43.2 | N35: "Mississippi Department on Environmental Quality Office of Pollution Control Public Notice," under Title V Fees section of Mississippi Department of Environmental Quality website (http://www.deq.state.ms.us/mdeq.nsf/page/Air_TitleVFees?OpenDocument)
A36: MT | B36: MT | C36: 1 | D36: 38.24 | E36: 45.888 | H36: MT | I36: 1 | J36: 0 | K36: 0 | N36: Information received by Sarah Helinek via e-mail in March 2010 from Charles Homer, MT Department of Environmental Quality (chomer@mt.gov)
A37: NC | B37: NC | C37: 1 | D37: 27.5 | E37: 33 | H37: NC | I37: 1 | J37: 27.5 | K37: 33 | N37: "Calendar Year 2010 Air Quality Fees," NC Department of Environment and Natural Resources, Division of Air Quality website; under "Permits" then under "Fees" (http://daq.state.nc.us/)
A38: ND | B38: ND | C38: 1 | D38: 13.4 | E38: 16.08 | H38: ND | I38: 1 | J38: 27.9 | K38: 33.48 | N38: Information received by Sarah Helinek via e-mail in March 2010 from Lewis Dendy, Lew Dendy, Environmental Scientist, ND Division of Air Quality (ldendy@nd.gov)
A39: NE | B39: NE | C39: 1 | D39: 62 | E39: 74.4 | H39: NE | I39: 1 | J39: 62 | K39: 74.4 | N39: "2008 Emission Inventory Fee Assessment," Nebraska Department of Environmental Quality (http://www.deq.state.ne.us/AirDivis.nsf/Pages/2006EIFA)
A40: NH | B40: NH | C40: 1 | D40: 136.15 | E40: 163.38 | H40: NH | I40: 1 | J40: 136.15 | K40: 163.38 | N40: "What Fees Are Required for an Air Permit?" New Hampshire Department of Environmental Services (http://des.nh.gov/organization/divisions/air/pehb/apps/fees.htm)
A41: NJ | B41: NJ | C41: 1 | D41: 105.12 | E41: 126.144 | H41: NJ | I41: 1 | J41: 105.12 | K41: 126.144 | N41: "Consumer Price Index Percentage Adjustments to Air Contaminant Emission Fees, and Base Fee Tables and Supplemental Fee Schedules," NJDEP Air Quality Permitting Program (http://www.nj.gov/dep/aqpp/archived/11162009NJRpage.html)
A42: NM | B42: NM | C42: 1 | D42: 23.07 | E42: 27.684 | H42: NM | I42: 1 | J42: 173.86 | K42: 208.632 | N42: "Air Quality Bureau," New Mexico Department of Environment (http://www.nmenv.state.nm.us/aqb/permit/permit_fees.htm)
A43: NV | B43: NV | C43: 1 | D43: 16 | E43: 19.2 | G43: **It should be noted that the majority of NV's fee revenue comes from "maintenance fees" as opposed to "emissions fees," unlike most states; for example, a Major Source with a Title V permit pays the $16.00/ton plus a $20,000 base fee | H43: NV | I43: 1 | J43: 16 | K43: 19.2 | M43: **It should be noted that the majority of NV's fee revenue comes from "maintenance fees" as opposed to "emissions fees," unlike most states; for example, a Major Source with a Title V permit pays the $16.00/ton plus a $20,000 base fee | N43: Information received by Sarah Helinek via e-mail in March 2010 from Patrick Anderson, Bureau of Air Pollution Control, Nevada Division of Environmental Protection (patricka@ndep.nv.gov)
A44: NY | B44: NY_<1000 | C44: 3 | D44: 45 | E44: 54 | F44: <1000 | H44: NY_<1000 | I44: 3 | J44: 45 | K44: 54 | L44: <1000 | M44: <1000 | N44: "Adopted Subpart 482-2, Operating Program Fees - Effective June 24, 2009,"New York State Department of Environmental Conservation (http://www.dec.ny.gov/regulations/55931.html)
A45: NY | B45: NY_1000-2000 | C45: 3 | D45: 50 | E45: 60 | F45: 1000-2000 | H45: NY_1000-2000 | I45: 3 | J45: 50 | K45: 60 | L45: 1000-2000 | M45: 1000-2000 | N45: "Adopted Subpart 482-2, Operating Program Fees - Effective June 24, 2009,"New York State Department of Environmental Conservation (http://www.dec.ny.gov/regulations/55931.html)
A46: NY | B46: NY_2000-5000 | C46: 3 | D46: 55 | E46: 66 | F46: 2000-5000 | H46: NY_2000-5000 | I46: 3 | J46: 55 | K46: 66 | L46: 2000-5000 | M46: 2000-5000 | N46: "Adopted Subpart 482-2, Operating Program Fees - Effective June 24, 2009,"New York State Department of Environmental Conservation (http://www.dec.ny.gov/regulations/55931.html)
A47: NY | B47: NY_>=5000 | C47: 3 | D47: 65 | E47: 78 | F47: >=5000 | H47: NY_>=5000 | I47: 3 | J47: 65 | K47: 78 | L47: >=5000 | M47: >=5000 | N47: "Adopted Subpart 482-2, Operating Program Fees - Effective June 24, 2009,"New York State Department of Environmental Conservation (http://www.dec.ny.gov/regulations/55931.html)
A48: OH | B48: OH | C48: 1 | D48: 43.75 | E48: 52.5 | H48: OH | I48: 1 | J48: 43.75 | K48: 52.5 | N48: "Title V General Information - Title V Emissions Fee Report Requirements," Ohio Environmental Protection Agency, Division of Air Pollution Control (http://web.epa.ohio.gov/dapc/title_v/titlev.html)
A49: OK | B49: OK | C49: 1 | D49: 34.04 | E49: 40.848 | H49: OK | I49: 1 | J49: 34.04 | K49: 40.848 | N49: Information received by Sarah Helinek via e-mail in March 2010 from Morris Moffit, Morris Moffett, Air Quality Division, OK Department of Environmental Quality (Morris.Moffett@deq.ok.gov)
A50: OR | B50: OR | C50: 1 | D50: 54.21 | E50: 65.052 | H50: OR | I50: 1 | J50: 54.21 | K50: 65.052 | N50: Information received by Sarah Helinek via e-mail in March 2010 from Andrea Curtis, Air Quality Division, Oregon Department of Environmental Equality (CURTIS.Andrea@deq.state.or.us)
A51: PA | B51: PA | C51: 1 | D51: 54 | E51: 64.8 | H51: PA | I51: 1 | J51: 54 | K51: 64.8 | N51: Information received by Sarah Helinek via e-mail in January 2010 from Douglas Malchenson, Air Quality Engineer. PA Department of Environmental Protection (dmalchenso@state.pa.us)
A52: RI | B52: RI | C52: 2 | D52: U.S. National | E52: U.S. National | F52: National | G52: No data received | H52: RI | I52: 2 | J52: U.S. National | K52: U.S. National | L52: National | M52: No data received | N52: Information N/A
A53: SC | B53: SC | C53: 1 | D53: 41.96 | E53: 50.352 | H53: SC | I53: 1 | J53: 41.96 | K53: 50.352 | N53: "Environmental Protection Fees - Fee Schedule," SC Department of Health and Environmental Control, Air Quality Division (http://www.scdhec.gov/environment/baq/fees.aspx)
A54: SD | B54: SD | C54: 2 | D54: U.S. National | E54: U.S. National | F54: National | G54: No data received | H54: SD | I54: 2 | J54: U.S. National | K54: U.S. National | L54: National | M54: No data received | N54: N/A
A55: TN | B55: TN | C55: 1 | D55: 43.75 | E55: 52.5 | H55: TN | I55: 1 | J55: 43.75 | K55: 52.5 | N55: "Title V Implementation Plan," TN Division of Air Pollution Control (http://www.tnchamber.org/environment/Draft%202008-2009%20Workload%20Analysis.pdf)
A56: TX | B56: TX | C56: 1 | D56: 44.17 | E56: 53.004 | H56: TX | I56: 1 | J56: 44.17 | K56: 53.004 | N56: "Point Source Air Emissions and Air Inspection Fees," Texas Commission on Environmental Quality (http://www.tceq.state.tx.us/implementation/air/industei/psei/air-fees.html#time)
A57: UT | B57: UT | C57: 2 | D57: U.S. National | E57: U.S. National | F57: National | G57: No data received | H57: UT | I57: 2 | J57: U.S. National | K57: U.S. National | L57: National | M57: No data received | N57: N/A
A58: VA | B58: VA | C58: 1 | D58: 44.17 | E58: 53.004 | H58: VA | I58: 1 | J58: 44.17 | K58: 53.004 | N58: Information received by Sarah Helinek via e-mail in January 2010 from Gary Graham, Regulatory Analyst, Office of Regulatory Affairs, Commonwealth of Virginia Department of Environmental Quality (Gary.Graham@deq.virginia.gov)
A59: VT | B59: VT | C59: 1 | D59: 42 | E59: 50.4 | H59: VT | I59: 1 | J59: 0 | K59: 0 | N59: Information received by Sarah Helinek via e-mail in January 2010 from Doug Elliot, Air Pollution Control Division, Vermont Department of Environmental Conservation (Doug.Elliott@state.vt.us)
A60: WA | B60: WA | C60: 1 | D60: 22.37 | E60: 26.844 | H60: WA | I60: 1 | J60: 22.37 | K60: 26.844 | N60: Information received by Sarah Helinek via e-mail in March 2010 from Crystal Alford, AOP Coordinator, Washington State Department of Ecology (Crystal.Alford@ecy.wa.gov)
A61: WI | B61: WI | C61: 1 | D61: 35.71 | E61: 42.852 | H61: WI | I61: 1 | J61: 35.71 | K61: 42.852 | N61: Information received by Sarah Helinek in March 2010 via e-mail from Ralph Patterson, Emission Inventory Team Leader, Emissions Inventory and Small Source Section, Bureau of Air Management, Wisconsin Department of Natural Resources (Ralph.Patterson@wiscon
A62: WV | B62: WV | C62: 1 | D62: 23.87 | E62: 28.644 | H62: WV | I62: 1 | J62: 23.87 | K62: 28.644 | N62: "West Virginia Air Quality Fees," West Virginia Department of Environmental Protection (http://www.dep.wv.gov/daq/planning/Pages/AirQualityFees.aspx)
A63: WY | B63: WY | C63: 1 | D63: 28.16 | E63: 33.792 | H63: WY | I63: 1 | J63: 28.16 | K63: 33.792 | N63: "Wyoming's Title V Operating Permit Program," Wyoming Department of Environmental Quality (http://deq.state.wy.us/aqd/TitleVOperatingPermitProgram.asp)
A64: *All costs are in $/ton | B64: *All costs are in $/ton | H64: *All costs are in $/ton

Sheet St.AirEm.Variables&Assumptions (hidden)
A2: =COLUMN() -> 1 | B2: =COLUMN() -> 2 | C2: =COLUMN() -> 3 | D2: =COLUMN() -> 4 | E2: =COLUMN() -> 5
A3: Block State | C3: Threshold (Tons)
B4: CAPs
A5: IL | B5: =COUNT(C5:E5) -> 1 | C5: 100
A6: KS | B6: =COUNT(C6:E6) -> 1 | C6: 100
A7: ME | B7: =COUNT(C7:E7) -> 2 | C7: 1000 | D7: 4000
A8: NY | B8: =COUNT(C8:E8) -> 3 | C8: 1000 | D8: 2000 | E8: 5000
B9: HAPs
A10: IL | B10: =COUNT(C10:E10) -> 1 | C10: 100
A11: KS | B11: =COUNT(C11:E11) -> 1 | C11: 10
A12: ME | B12: =COUNT(C12:E12) -> 2 | C12: 1000 | D12: 4000
A13: NY | B13: =COUNT(C13:E13) -> 3 | C13: 1000 | D13: 2000 | E13: 5000

Sheet Water Charges (hidden)
B2: Wastewater (2019$/gallons)* | C2: TSS(2019$/lbs)* | D2: BOD/COD (2019$/lbs)* | E2: Water (2019$/gallons)*
A3: U.S. National | B3: 0.005830695187 | C3: 0.3577 | D3: 0.3765 | E3: 0.005168636364
B4: *Values are calculated as the average rate charged by utilities.

Sheet Average HW Cost (hidden)
B2: Computation of average cost for RCRA industrial hazardous waste disposal:
G4: Average cost | H4: 2017 BR tons*
C5: A. | F5: Incineration price (per ton) = | G5: =(Incineration!I9) -> 2367.277718 | H5: 1174764
C6: B. | F6: Landfill price (per ton) = | G6: =(Landfill!H13) -> 363.0406838 | H6: 1138596
F7: Tonnage weighted average price = | G7: =ROUND(SUMPRODUCT(G5:G6,H5:H6)/SUM(H5:H6), 0) -> 1381
G8: ="$"&G7&"/ton - weighted by incin/landfill proportion" -> $1381/ton - weighted by incin/landfill proportion
G9: =G7/2000 -> 0.6905 | H9: per pound
G10: =G9+(0.06*'Implicit GDP Price Deflators'!$AF$8/'Implicit GDP Price Deflators'!$R$8) -> 0.7675512806 | H10: including transportation
C11: Notes:
C12: A. Incineration price calculated on the Incineration tab
C13: B. Landfill price calculated on the Landfill tab
C14: * Source: 2017 RCRA National Biennial Report
C15: See Reference tab for more information

Sheet Incineration (hidden)
B2: Incineration Cost
F3: 2011 UCC | G3: 2019$ | I3: Equivalent
E4: ETC Incineration Price Categories* | F4: avg price | G4: avg price | H4: Cost basis | I4: Per-ton price
D5: 1 | E5: Drummed Halogen Liquid Organics | F5: 515 | G5: =F5*'Implicit GDP Price Deflators'!$AF$8/'Implicit GDP Price Deflators'!$X$8 -> 589.2545201 | H5: per drum | I5: =(G5)*2000/(55*8.3) -> 2581.618927 | J5: Assume 55 gallons per drum @8.3 lbs per gallon
D6: 2 | E6: Bulk Pumpable Sludges | F6: 11 | G6: =F6*'Implicit GDP Price Deflators'!$AF$8/'Implicit GDP Price Deflators'!$X$8 -> 12.58601888 | H6: per gallon | I6: =G6/8.3*2000 -> 3032.775633 | J6: Assume 8.3 lbs per gallon
D7: 3 | E7: Bulk Contaminated Soils | F7: 1300 | G7: =F7*'Implicit GDP Price Deflators'!$AF$8/'Implicit GDP Price Deflators'!$X$8 -> 1487.438594 | H7: per ton | I7: =(G7) -> 1487.438594
H9: average unit cost (per ton) = | I9: =AVERAGE(I5:I7) -> 2367.277718 | J9: per ton
E10: * Source: 2011 EPA Unit Cost Compendium | I10: =I9/2000 -> 1.183638859 | J10: per pound
I11: =I9/2000*8.3 -> 9.824202529 | J11: per gallon
E12: Note: for 2019 costs, UCC was inflated from 2011$ to 2019$

Sheet Landfill (hidden)
B2: Landfill Cost
D4: 2011 UCC | G4: Equivalent
C5: ETC Landfill Price Categories* | D5: avg price | E5: 2019$ | F5: Cost basis | G5: Per-ton price
B6: 1 | C6: Debris | D6: =(25+138)/2 -> 81.5 | E6: =D6*'Implicit GDP Price Deflators'!$AF$8/'Implicit GDP Price Deflators'!$X$8 -> 93.25095803 | F6: per ton | G6: =(E6) -> 93.25095803 | H6: UCC 2011 cost: $25-$138 per ton. Midpoint used.
B7: 2 | C7: Bulk without Treatment | D7: 129 | E7: =D7*'Implicit GDP Price Deflators'!$AF$8/'Implicit GDP Price Deflators'!$X$8 -> 147.5996759 | F7: per ton | G7: =(E7) -> 147.5996759
B8: 3 | C8: Drummed with Treatment | D8: 196 | E8: =D8*'Implicit GDP Price Deflators'!$AF$8/'Implicit GDP Price Deflators'!$X$8 -> 224.2599727 | F8: per drum | G8: =(E8)*2000/(55*8.3) -> 982.5190479 | H8: Assume 55 gallons per drum @8.3 lbs per gallon
B9: 4 | C9: Drummed without Treatment | D9: 109 | E9: =D9*'Implicit GDP Price Deflators'!$AF$8/'Implicit GDP Price Deflators'!$X$8 -> 124.7160052 | F9: per drum | G9: =(E9)*2000/(55*8.3) -> 546.4008991 | H9: Assume 55 gallons per drum @8.3 lbs per gallon
B10: 5 | C10: Soil Treated and Landfilled | D10: 228 | E10: =D10*'Implicit GDP Price Deflators'!$AF$8/'Implicit GDP Price Deflators'!$X$8 -> 260.8738458 | F10: per ton | G10: =(E10) -> 260.8738458
B11: 6 | C11: Soil Direct to Landfill | D11: 129 | E11: =D11*'Implicit GDP Price Deflators'!$AF$8/'Implicit GDP Price Deflators'!$X$8 -> 147.5996759 | F11: per ton | G11: =(E11) -> 147.5996759
G13: average unit cost (per ton) = | H13: =AVERAGE(G6:G11) -> 363.0406838 | I13: per ton
C14: * Source: 2011 EPA Unit Cost Compendium | H14: =H13/2000 -> 0.1815203419 | I14: per pound
H15: =H13/2000*8.3 -> 1.506618838 | I15: per gallon
C16: Note: for 2019 costs, UCC was inflated from 2011$ to 2019$

Sheet State Elec. Prices & Premiums (hidden)
B2: Electricity Prices
B3: State | C3: Electricity Prices (Commercial End-Use Sector) (c/Kwh) | D3: Electricity Prices (Commercial End-Use Sector) ($/Kwh)
B4: U.S. National | C4: 12.42 | D4: =C4/100 -> 0.1242
B5: AK | C5: 19.68 | D5: =C5/100 -> 0.1968
B6: AL | C6: 11.53 | D6: =C6/100 -> 0.1153
B7: AR | C7: 8.48 | D7: 0.0848
B8: AZ | C8: 9.91 | D8: 0.0991
B9: CA | C9: 15.7 | D9: 0.157
B10: CO | C10: 9.8 | D10: 0.098
B11: CT | C11: 17.29 | D11: 0.1729
B12: DC | C12: 12.06 | D12: 0.1206
B13: DE | C13: 9.66 | D13: 0.0966
B14: FL | C14: 8.99 | D14: 0.0899
B15: GA | C15: 9.75 | D15: 0.0975
B16: HI | C16: 30.64 | D16: 0.3064
B17: ID | C17: 7.47 | D17: 0.0747
B18: IL | C18: 8.96 | D18: 0.0896
B19: IN | C19: 10.82 | D19: 0.1082
B20: IO | C20: 10.1 | D20: 0.101
B21: KS | C21: 10.22 | D21: 0.1022
B22: KY | C22: 10.31 | D22: 0.1031
B23: LA | C23: 8.67 | D23: 0.0867
B24: MA | C24: 16.11 | D24: 0.1611
B25: MD | C25: 10.01 | D25: 0.1001
B26: ME | C26: 12.66 | D26: 0.1266
B27: MI | C27: 11.52 | D27: 0.1152
B28: MN | C28: 10.12 | D28: 0.1012
B29: MO | C29: 8.28 | D29: 0.0828
B30: MS | C30: 10.69 | D30: 0.1069
B31: MT | C31: 10.45 | D31: 0.1045
B32: NC | C32: 8.69 | D32: 0.0869
B33: ND | C33: 8.71 | D33: 0.0871
B34: NE | C34: 8.83 | D34: 0.0883
B35: NH | C35: 15.52 | D35: 0.1552
B36: NJ | C36: 12.06 | D36: 0.1206
B37: NM | C37: 9.67 | D37: 0.0967
B38: NV | C38: 7.55 | D38: 0.0755
B39: NY | C39: 13.34 | D39: 0.1334
B40: OH | C40: 9.3 | D40: 0.093
B41: OK | C41: 7.24 | D41: 0.0724
B42: OR | C42: 9.02 | D42: 0.0902
B43: PA | C43: 8.65 | D43: 0.0865
B44: RI | C44: 16.4 | D44: 0.164
B45: SC | C45: 10.22 | D45: 0.1022
B46: SD | C46: 9.27 | D46: 0.0927
B47: TN | C47: 10.61 | D47: 0.1061
B48: TX | C48: 7.77 | D48: 0.0777
B49: UT | C49: 8.21 | D49: 0.0821
B50: VA | C50: 8.01 | D50: 0.0801
B51: VT | C51: 16.39 | D51: 0.1639
B52: WA | C52: 8.89 | D52: 0.0889
B53: WI | C53: 10.85 | D53: 0.1085
B54: WV | C54: 9.35 | D54: 0.0935
B55: WY | C55: 9.53 | D55: 0.0953
B57: Source: http://www.eia.gov/electricity/monthly, Table 5.6B
B58: Average price of electricity to commercial sector, by state

Sheet Implicit GDP Price Deflators (hidden)
A1: Table 1.1.9. Implicit Price Deflators for Gross Domestic Product
A2: [Index numbers, 2012=100]
A3: Bureau of Economic Analysis
A4: Last Revised on: July 30, 2020 - Next Release Date August 27, 2020
A5: Table 1.1.9 from Interactive Data explorer at https://apps.bea.gov/iTable/iTable.cfm?reqid=19&step=2#reqid=19&step=2&isuri=1&1921=survey
W6: =AF8/W8 -> 1.168076495
A7: Line | C7: 1990 | D7: 1991 | E7: 1992 | F7: 1993 | G7: 1994 | H7: 1995 | I7: 1996 | J7: 1997 | K7: 1998 | L7: 1999 | M7: 2000 | N7: 2001 | O7: 2002 | P7: 2003 | Q7: 2004 | R7: 2005 | S7: 2006 | T7: 2007 | U7: 2008 | V7: 2009 | W7: 2010 | X7: 2011 | Y7: 2012 | Z7: 2013 | AA7: 2014 | AB7: 2015 | AC7: 2016 | AD7: 2017 | AE7: 2018 | AF7: 2019 | AG7: 2020 (Q1) | AH7: 2020(Q2) | AI7: 2020 (YTD)
A8: 1 | B8: Gross domestic product | C8: 63.671 | D8: 65.825 | E8: 67.325 | F8: 68.92 | G8: 70.392 | H8: 71.868 | I8: 73.183 | J8: 74.445 | K8: 75.283 | L8: 76.37 | M8: 78.078 | N8: 79.79 | O8: 81.052 | P8: 82.557 | Q8: 84.78 | R8: 87.421 | S8: 90.066 | T8: 92.486 | U8: 94.285 | V8: 95.004 | W8: 96.111 | X8: 98.118 | Y8: 100 | Z8: 101.755 | AA8: 103.638 | AB8: 104.624 | AC8: 105.722 | AD8: 107.71 | AE8: 110.296 | AF8: 112.265 | AG8: 113.415 | AH8: 112.803 | AI8: =(AG8+AH8)/2 -> 113.109
A9: 2 | B9: Personal consumption expenditures | C9: 63.355 | D9: 65.473 | E9: 67.218 | F9: 68.892 | G9: 70.33 | H9: 71.811 | I9: 73.346 | J9: 74.623 | K9: 75.216 | L9: 76.338 | M9: 78.235 | N9: 79.738 | O9: 80.789 | P9: 82.358 | Q9: 84.411 | R9: 86.812 | S9: 89.174 | T9: 91.438 | U9: 94.18 | V9: 94.094 | W9: 95.705 | X9: 98.131 | Y9: 100 | Z9: 101.346 | AA9: 102.83 | AB9: 103.043 | AC9: 104.121 | AD9: 105.984 | AE9: 108.239 | AF9: 109.851
A10: 3 | B10: Goods | C10: 81.927 | D10: 83.93 | E10: 84.943 | F10: 85.681 | G10: 86.552 | H10: 87.361 | I10: 88.321 | J10: 88.219 | K10: 86.893 | L10: 87.349 | M10: 89.082 | N10: 89.015 | O10: 88.166 | P10: 88.054 | Q10: 89.292 | R10: 91.084 | S10: 92.306 | T10: 93.331 | U10: 96.122 | V10: 93.812 | W10: 95.183 | X10: 98.773 | Y10: 100 | Z10: 99.407 | AA10: 98.92 | AB10: 95.896 | AC10: 94.325 | AD10: 94.597 | AE10: 95.244 | AF10: 94.785
A11: 4 | B11: Durable goods | C11: 131.935 | D11: 133.868 | E11: 134.793 | F11: 136.12 | G11: 138.784 | H11: 139.797 | I11: 138.386 | J11: 135.364 | K11: 131.538 | L11: 127.994 | M11: 125.717 | N11: 123.254 | O11: 120.143 | P11: 115.752 | Q11: 113.488 | R11: 112.309 | S11: 110.388 | T11: 108.038 | U11: 106.012 | V11: 104.02 | W11: 102.107 | X11: 101.28 | Y11: 100 | Z11: 97.968 | AA11: 95.429 | AB11: 93.358 | AC11: 91.117 | AD11: 89.025 | AE11: 87.529 | AF11: 86.463
A12: 5 | B12: Nondurable goods | C12: 63.112 | D12: 64.955 | E12: 65.898 | F12: 66.434 | G12: 66.788 | H12: 67.486 | I12: 69.014 | J12: 69.735 | K12: 69.223 | L12: 70.943 | M12: 73.99 | N12: 74.776 | O12: 74.781 | P12: 76.327 | Q12: 78.97 | R12: 81.998 | S12: 84.553 | T12: 87.041 | U12: 91.904 | V12: 89.467 | W12: 92.182 | X12: 97.652 | Y12: 100 | Z12: 100.082 | AA12: 100.599 | AB12: 97.092 | AC12: 95.878 | AD12: 97.445 | AE12: 99.313 | AF12: 99.212
A13: 6 | B13: Services | C13: 54.846 | D13: 56.992 | E13: 59.018 | F13: 61.059 | G13: 62.719 | H13: 64.471 | I13: 66.24 | J13: 68.107 | K13: 69.549 | L13: 70.97 | M13: 72.938 | N13: 75.171 | O13: 77.123 | P13: 79.506 | Q13: 81.965 | R13: 84.673 | S13: 87.616 | T13: 90.516 | U13: 93.235 | V13: 94.231 | W13: 95.957 | X13: 97.814 | Y13: 100 | Z13: 102.316 | AA13: 104.804 | AB13: 106.694 | AC13: 109.16 | AD13: 111.868 | AE13: 114.991 | AF13: 117.744
A14: 7 | B14: Gross private domestic investment | C14: 81.228 | D14: 82.684 | E14: 82.672 | F14: 83.641 | G14: 84.908 | H14: 86.263 | I14: 86.227 | J14: 86.239 | K14: 85.706 | L14: 85.826 | M14: 86.862 | N14: 87.367 | O14: 87.927 | P14: 88.503 | Q14: 91.157 | R14: 94.913 | S14: 98.13 | T14: 99.585 | U14: 100.597 | V14: 99.366 | W14: 97.699 | X14: 98.748 | Y14: 100 | Z14: 100.876 | AA14: 102.872 | AB14: 103.697 | AC14: 103.694 | AD14: 105.269 | AE14: 107.327 | AF14: 108.966
A15: 8 | B15: Fixed investment | C15: 80.278 | D15: 81.683 | E15: 81.728 | F15: 82.711 | G15: 83.983 | H15: 85.378 | I15: 85.45 | J15: 85.599 | K15: 85.133 | L15: 85.277 | M15: 86.486 | N15: 87.241 | O15: 87.5 | P15: 88.265 | Q15: 90.843 | R15: 94.597 | S15: 97.958 | T15: 99.456 | U15: 100.296 | V15: 99.076 | W15: 97.568 | X15: 98.641 | Y15: 100 | Z15: 101.091 | AA15: 103.172 | AB15: 104.075 | AC15: 104.214 | AD15: 105.954 | AE15: 107.998 | AF15: 109.799
A16: 9 | B16: Nonresidential | C16: 92.516 | D16: 94.267 | E16: 93.96 | F16: 94.161 | G16: 94.904 | H16: 95.849 | I16: 95.267 | J16: 94.735 | K16: 93.248 | L16: 92.314 | M16: 92.718 | N16: 92.346 | O16: 91.863 | P16: 91.156 | Q16: 92.055 | R16: 94.443 | S16: 96.745 | T16: 98.31 | U16: 99.832 | V16: 99.184 | W16: 97.416 | X16: 98.559 | Y16: 100 | Z16: 100.251 | AA16: 101.469 | AB16: 101.909 | AC16: 101.131 | AD16: 101.994 | AE16: 102.882 | AF16: 104.256
A17: 10 | B17: Structures | C17: 40.948 | D17: 41.689 | E17: 41.699 | F17: 42.922 | G17: 44.437 | H17: 46.362 | I17: 47.54 | J17: 49.355 | K17: 51.612 | L17: 53.198 | M17: 55.283 | N17: 58.178 | O17: 60.603 | P17: 62.769 | Q17: 67.416 | R17: 75.733 | S17: 84.749 | T17: 89.748 | U17: 94.335 | V17: 92.613 | W17: 92.006 | X17: 95.362 | Y17: 100 | Z17: 101.455 | AA17: 107.198 | AB17: 109.403 | AC17: 109.763 | AD17: 112.668 | AE17: 114.563 | AF17: 118.709
A18: 11 | B18: Equipment | C18: 135.042 | D18: 137.33 | E18: 137.121 | F18: 135.518 | G18: 135.277 | H18: 133.796 | I18: 130.762 | J18: 127.156 | K18: 121.451 | L18: 116.763 | M18: 114.224 | N18: 110.858 | O18: 108.531 | P18: 105.725 | Q18: 104.841 | R18: 104.598 | S18: 103.56 | T18: 103.191 | U18: 102.542 | V18: 103.168 | W18: 99.471 | X18: 99.447 | Y18: 100 | Z18: 99.787 | AA18: 99.169 | AB18: 98.671 | AC18: 97.621 | AD18: 97.565 | AE18: 97.685 | AF18: 97.888
A19: 12 | B19: Intellectual property products | C19: 88.147 | D19: 90.271 | E19: 89.373 | F19: 89.998 | G19: 90.468 | H19: 93.134 | I19: 93.544 | J19: 94.052 | K19: 93.595 | L19: 95.105 | M19: 97.814 | N19: 97.684 | O19: 96.376 | P19: 95.647 | Q19: 95.335 | R19: 95.952 | S19: 97.088 | T19: 98.284 | U19: 99.834 | V19: 98.589 | W19: 98.306 | X19: 99.517 | Y19: 100 | Z19: 100.081 | AA19: 100.791 | AB19: 101.374 | AC19: 100.232 | AD19: 101.065 | AE19: 102.372 | AF19: 103.683
A20: 13 | B20: Residential | C20: 56.288 | D20: 57.021 | E20: 57.723 | F20: 60.074 | G20: 62.247 | H20: 64.473 | I20: 65.856 | J20: 67.444 | K20: 69.223 | L20: 71.816 | M20: 75.004 | N20: 78.564 | O20: 80.51 | P20: 84.325 | Q20: 90.243 | R20: 96.706 | S20: 102.355 | T20: 103.708 | U20: 102.249 | V20: 98.671 | W20: 98.317 | X20: 99.049 | Y20: 100 | Z20: 105.054 | AA20: 111.118 | AB20: 114.114 | AC20: 118.134 | AD20: 123.497 | AE20: 130.47 | AF20: 134.182
A21: 14 | B21: Change in private inventories | C21: --- | D21: --- | E21: --- | F21: --- | G21: --- | H21: --- | I21: --- | J21: --- | K21: --- | L21: --- | M21: --- | N21: --- | O21: --- | P21: --- | Q21: --- | R21: --- | S21: --- | T21: --- | U21: --- | V21: --- | W21: --- | X21: --- | Y21: --- | Z21: --- | AA21: --- | AB21: --- | AC21: --- | AD21: --- | AE21: --- | AF21: ---
A22: 15 | B22: Net exports of goods and services | C22: --- | D22: --- | E22: --- | F22: --- | G22: --- | H22: --- | I22: --- | J22: --- | K22: --- | L22: --- | M22: --- | N22: --- | O22: --- | P22: --- | Q22: --- | R22: --- | S22: --- | T22: --- | U22: --- | V22: --- | W22: --- | X22: --- | Y22: --- | Z22: --- | AA22: --- | AB22: --- | AC22: --- | AD22: --- | AE22: --- | AF22: ---
A23: 16 | B23: Exports | C23: 79.657 | D23: 80.545 | E23: 80.153 | F23: 80.277 | G23: 81.21 | H23: 83.025 | I23: 81.923 | J23: 80.479 | K23: 78.574 | L23: 77.971 | M23: 79.467 | N23: 78.835 | O23: 78.201 | P23: 79.4 | Q23: 82.284 | R23: 85.131 | S23: 87.842 | T23: 91.139 | U23: 95.41 | V23: 89.694 | W23: 93.348 | X23: 99.242 | Y23: 100 | Z23: 100.168 | AA23: 100.272 | AB23: 95.395 | AC23: 93.49 | AD23: 95.921 | AE23: 99.183 | AF23: 98.751
A24: 17 | B24: Goods | C24: 85.713 | D24: 85.674 | E24: 84.338 | F24: 83.914 | G24: 84.873 | H24: 86.887 | I24: 84.684 | J24: 82.336 | K24: 79.74 | L24: 78.661 | M24: 80.024 | N24: 79.557 | O24: 78.729 | P24: 79.506 | Q24: 82.315 | R24: 84.934 | S24: 87.586 | T24: 91.002 | U24: 95.713 | V24: 88.921 | W24: 92.967 | X24: 99.793 | Y24: 100 | Z24: 99.312 | AA24: 98.308 | AB24: 91.306 | AC24: 87.741 | AD24: 90.028 | AE24: 93.251 | AF24: 91.821
A25: 18 | B25: Services | C25: 65.748 | D25: 68.555 | E25: 70.165 | F25: 71.456 | G25: 72.323 | H25: 73.683 | I25: 75.137 | J25: 75.898 | K25: 75.74 | L25: 76.325 | M25: 78.159 | N25: 77.107 | O25: 76.952 | P25: 79.172 | Q25: 82.236 | R25: 85.634 | S25: 88.49 | T25: 91.504 | U25: 94.746 | V25: 91.386 | W25: 94.197 | X25: 97.999 | Y25: 100 | Z25: 102.099 | AA25: 104.708 | AB25: 104.606 | AC25: 106.4 | AD25: 109.155 | AE25: 112.495 | AF25: 114.385
A26: 19 | B26: Imports | C26: 79.233 | D26: 78.573 | E26: 78.636 | F26: 78.033 | G26: 78.766 | H26: 80.924 | I26: 79.514 | J26: 76.75 | K26: 72.618 | L26: 73.019 | M26: 76.221 | N26: 74.223 | O26: 73.242 | P26: 75.454 | Q26: 79.06 | R26: 83.703 | S26: 86.909 | T26: 89.921 | U26: 98.96 | V26: 87.987 | W26: 92.783 | X26: 99.826 | Y26: 100 | Z26: 98.636 | AA26: 97.854 | AB26: 90.23 | AC26: 87.088 | AD26: 88.997 | AE26: 91.566 | AF26: 90.215
A27: 20 | B27: Goods | C27: 83.056 | D27: 81.486 | E27: 81.04 | F27: 80.134 | G27: 80.718 | H27: 82.87 | I27: 80.77 | J27: 77.434 | K27: 72.757 | L27: 72.8 | M27: 76.641 | N27: 74.464 | O27: 73.097 | P27: 74.687 | Q27: 78.232 | R27: 83.183 | S27: 86.528 | T27: 89.429 | U27: 99.234 | V27: 86.628 | W27: 92.052 | X27: 99.913 | Y27: 100 | Z27: 98.054 | AA27: 96.738 | AB27: 87.597 | AC27: 83.888 | AD27: 85.742 | AE27: 88.183 | AF27: 86.393
A28: 21 | B28: Services | C28: 63.655 | D28: 65.983 | E28: 67.836 | F28: 68.411 | G28: 69.753 | H28: 71.931 | I28: 73.726 | J28: 73.724 | K28: 72.282 | L28: 74.537 | M28: 74.259 | N28: 73.214 | O28: 74.271 | P28: 79.866 | Q28: 83.818 | R28: 86.721 | S28: 89.134 | T28: 92.77 | U28: 97.798 | V28: 94.511 | W28: 96.416 | X28: 99.392 | Y28: 100 | Z28: 101.575 | AA28: 103.558 | AB28: 103.994 | AC28: 103.892 | AD28: 106.089 | AE28: 109.34 | AF28: 110.401
A29: 22 | B29: Government consumption expenditures and gross investment | C29: 52.113 | D29: 54.005 | E29: 55.642 | F29: 56.953 | G29: 58.463 | H29: 60.123 | I29: 61.355 | J29: 62.56 | K29: 63.624 | L29: 65.778 | M29: 68.601 | N29: 70.567 | O29: 72.393 | P29: 75.028 | Q29: 78.153 | R29: 82.11 | S29: 85.661 | T29: 89.492 | U29: 93.317 | V29: 92.931 | W29: 95.386 | X29: 98.285 | Y29: 100 | Z29: 102.332 | AA29: 104.435 | AB29: 104.598 | AC29: 104.926 | AD29: 107.398 | AE29: 111.312 | AF29: 113.439
A30: 23 | B30: Federal | C30: 57.25 | D30: 59.309 | E30: 60.824 | F30: 62.151 | G30: 63.861 | H30: 65.838 | I30: 66.937 | J30: 67.972 | K30: 68.841 | L30: 70.519 | M30: 72.886 | N30: 74.236 | O30: 76.631 | P30: 80.008 | Q30: 82.76 | R30: 86.204 | S30: 88.949 | T30: 91.59 | U30: 94.404 | V30: 94.214 | W30: 96.421 | X30: 99.07 | Y30: 100 | Z30: 100.931 | AA30: 102.632 | AB30: 103.128 | AC30: 103.711 | AD30: 105.843 | AE30: 109.089 | AF30: 111.11
A31: 24 | B31: National defense | C31: 57.162 | D31: 58.964 | E31: 60.678 | F31: 61.615 | G31: 63.229 | H31: 65.027 | I31: 66.114 | J31: 67.035 | K31: 67.871 | L31: 69.559 | M31: 71.908 | N31: 73.27 | O31: 75.714 | P31: 79.505 | Q31: 82.263 | R31: 86.011 | S31: 89.022 | T31: 91.75 | U31: 94.801 | V31: 94.126 | W31: 96.128 | X31: 98.946 | Y31: 100 | Z31: 100.609 | AA31: 102.056 | AB31: 102.334 | AC31: 102.696 | AD31: 104.449 | AE31: 107.477 | AF31: 109.256
A32: 25 | B32: Nondefense | C32: 57.093 | D32: 59.787 | E32: 60.825 | F32: 62.994 | G32: 64.898 | H32: 67.223 | I32: 68.344 | J32: 69.591 | K32: 70.518 | L32: 72.178 | M32: 74.578 | N32: 75.906 | O32: 78.222 | P32: 80.895 | Q32: 83.637 | R32: 86.531 | S32: 88.799 | T32: 91.282 | U32: 93.664 | V32: 94.364 | W32: 96.942 | X32: 99.289 | Y32: 100 | Z32: 101.476 | AA32: 103.593 | AB32: 104.428 | AC32: 105.342 | AD32: 108.04 | AE32: 111.619 | AF32: 114.014
A33: 26 | B33: State and local | C33: 49.153 | D33: 50.953 | E33: 52.69 | F33: 54.002 | G33: 55.394 | H33: 56.871 | I33: 58.177 | J33: 59.471 | K33: 60.63 | L33: 63.008 | M33: 66.032 | N33: 68.281 | O33: 69.815 | P33: 72.05 | Q33: 75.369 | R33: 79.609 | S33: 83.617 | T33: 88.133 | U33: 92.558 | V33: 92.048 | W33: 94.669 | X33: 97.739 | Y33: 100 | Z33: 103.279 | AA33: 105.645 | AB33: 105.598 | AC33: 105.77 | AD33: 108.45 | AE33: 112.775 | AF33: 114.969
B34: Addendum:
A35: 27 | B35: Gross national product | C35: 63.637 | D35: 65.801 | E35: 67.299 | F35: 68.891 | G35: 70.36 | H35: 71.843 | I35: 73.161 | J35: 74.423 | K35: 75.263 | L35: 76.348 | M35: 78.053 | N35: 79.764 | O35: 81.026 | P35: 82.533 | Q35: 84.754 | R35: 87.395 | S35: 90.041 | T35: 92.46 | U35: 94.268 | V35: 94.997 | W35: 96.102 | X35: 98.118 | Y35: 100 | Z35: 101.754 | AA35: 103.626 | AB35: 104.596 | AC35: 105.69 | AD35: 107.677 | AE35: 110.261 | AF35: 112.227
AF39: =1*AF8/$Q8 -> 1.324192026
AS40: 101.642
AS41: 104.081
AS42: =AVERAGE(AS40:AS41) -> 102.8615

Sheet Drop down lists (hidden)
A6: Haz Inputs and Wastes
A7: (Select)
A8: lbs
A9: gal
A11: Air Emissions
A12: (Select)
A13: lbs
A14: kg
A15: tons
A16: metric tons
A18: Energy
A19: (Select)
A20: therms
A21: BTU
A22: cubic feet
A24: Electricity
A25: (Select)
A26: kWh
A27: Gj
A28: therms
A29: BTU
A31: Waste
A32: (Select)
A33: tons
A34: kg
A35: lbs
A36: gal
